Workbook

Sheet INICIO
G2: INTRODUCCION | I2: MANUAL DE USUARIO | K2: SIMULADOR
F17: PIA 14072: Optimización del trozado de fustes en la cosecha de rodales de las principales especies cultivadas en el Noreste de Argentina

Sheet Introducción
F1: INICIO | H1: MANUAL DE USUARIO | J1: SIMULADOR

Sheet Manual de usuario
F1: INICIO | H1: INTRODUCCION | J1: SIMULADOR
B3: Instrucciones
B4: * El sistema permite modelar árboles de hasta 35 m de altura y copas de hasta 20 m de longitud.
B5: ** En caso de visualizar alguna celda en color rojo, deberá revisar el dato ingresado en la misma.
B6: 1- Como primer paso, una vez abierto el programa, recuerde habilitar o permitir el uso de macros
B7: 2- Diríjase a la hoja "Modelo de simulación de copa" e ingrese las Variables de entrada DAP, H y HBCV (ver "Definición de las variables"). Si no conoce la HBCV, puede estimarla ingresando la Densidad del rodal. Observará el valor estimado en la celda C15 y deberá copiarlo en la celda correspondiente a la HBCV.
B9: 3- Para correr la simulación, presione el botón "Simular" ubicado al pie de la ventana para ingreso de datos.
B10: 4- Para un mismo conjunto de valores de las 3 variables de entrada, puede realizar tantas simulaciones como desee, presionando sucesivamente el botón "Simular". De este modo obtendrá la representación, para un individuos de las mismas dimensiones de H, DAP y HBCV, un conjunto de estructuras de copa diferentes, las cuales diferirán unas de otras en cierta medida, de forma coherente con los modelos probabilísticos empleados, los cuales recogen las fuentes de variación no controladas (componentes aleatorias del modelo).
B13: 5- Si desea recopilar los resultados de varias simulaciones, puede copiar las tablas generadas en cada simulación y pegarlas en una nueva hoja mediante el comando "pegar sólo valores"
B14: 6-Para realizar simulaciones con otros valores de DAP, H y HBCV, modifique el valor de las variables de entrada y presione el botón "Simular".
B33: Definición de las variables
B34: d: es el diámetro del fuste a una altura determinada (cm). Se estimada mediante el modelo de forma de Sharma (forma-volumen compatible).
B35: DAP: diámetro del fuste a la altura del pecho (cm)
B36: H: altura total del fuste (m)
B37: h: altura (m)
B38: HBCV: altura de la base de la copa viva (altura del primer verticilo). Debe determinarse a campo, o calcularse como la diferencia entre la H del árbol y la estimación de la longitud de la copa, obtenida mediante el modelo suministrado [6], en función de la H del árbol y la densidad del rodal. El valor estimado puede visualizarse en la celda C13 de la hoja "Modelo de simulación de copa" [8]. (Su valor a campo depende de la cantidad e intensidad de podas y de la dinámica del rodal y del individuo en relación al desrame natural).
B41: g: sección transversal del fuste a 1,30 metros de altura
B42: gbcv: sección transversal del fuste a la altura del comienzo de la copa viva
B43: gbv: sección transversal del fuste a la altura de la base de un verticilo determinado
B44: gramas (g): sección transversal (agregada) de la base de las ramas de toda la copa, en función de g
B45: gramas (gbcv): sección transversal (agregada) de la base de las ramas de toda la copa, en función de gbcv
B46: gramas.parcial (gbv): sección transversal (agregada) de la base de las ramas comprendidas entre el ápice y el verticilo considerado, en función del gbv
B47: g ramas del verticilo: sumatoria de la sección transversal de la base de las ramas que integran un verticilo dado.
B48: LE: longitud de entrenudos o longitud entre verticilos. Variable discreta, comprendida entre 2 y 20 dm, con intervalos de 1 dm. Es definida como la distancia vertical que separa la base de dos verticilos consecutivos determinados, medida a lo largo del eje longitudinal de fuste. Tener en cuenta que un porcentaje de esta longitud estará ocupada por una porcion de los nudos y su zona de influencia.
B50: Prob.ac(LE) : probabilidad acumulada para la variable LE. Válida para valores de LE comprendidos entre 0,2 m y 2 m, debiéndose ingresar los valores de LE en decímetros.
B51: LC: longitud de la copa
B52: Densidad: cantidad de individuos por hectárea
B53: CR: cantidad de ramas presentes en un verticilo. Variable discreta comprendida entre 1 y 5, con intervalos de una unidad
B56: funciónes
B58: [1] - Función de forma-volumen compatible (Modelo de Sharma). (Sañudo et.al., 2014).
B64: [2] - Relación gfuste-gramas (Sañudo et.al., 2014).
B68: [3] - Relación gbcv-gramas (total). (Sañudo et.al., 2014)
B72: [4] - Relación g base verticilo-gramas (parcial). (Sañudo et.al., 2014)
B76: [5] - Probabilidad acumulada (Distribución de frecuencias relativas) para las longitudes de entrenudos (LE).
B77: Implementado mediante cadenas markovianas. Publicado en Jotefa 2019
B80: [6] - Longitud de copa (informe final PIA 14072-DIPROSA, 2018)
B85: [7] - Distribucion de frecuencias (acumulada) para la variable "Cantidad de ramas por verticilo" ((informe final PIA 14072-DIPROSA, 2018))

Sheet MODELO DE SIMULACION COPA
A1: INICIO | C1: INTRODUCCION | J1: MANUAL DE USUARIO
Y3: distrribución de freciencias de la longitud de entrenudos | AB3: distrribución de freciencias de la longitud de entrenudos
B5: Variables de entrada | H5: SIMULACIÓN DE ESTRUCTURA DE COPA: TABLA DETALLADA
B6: Arbol Nº | C6: A6 | G6: replica columna U (auxiliar para calculos intermedios) | H6: H (m) | I6: Dist. desde primer verticilo (m) | J6: Verticilo Nº | K6: Dist d/verticilo anterior (solo para calculos intermedios) | L6: Distancia desde verticilo anterior o "longitud de entrenudo" (m) | M6: Diámetro del fuste "d" (cm) [1] | N6: Sección del fuste "g" (cm2) | O6: g ramas (parcial) por encima de la seccion considerada (cm2) [4] | P6: g ramas del verticilo (cm2) | Q6: Cantidad de ramas por verticilo [7] | R6: Diametro medio ramas (cm) | S6: Numero Aleatorio | T6: Croquis | Y6: clases | Z6: no se cuenta la medicion desde el ultimo veeticilo hasta el apice, porque estaria tirando los valores hacia aabajo, ya q en el mejor de los casos justo a la h actual del apice saldra otro verticilo, pero en otros casos aun estara alargandose el apice y al suponer que ahí estaria el ultimo verticilo, se estaria subestiando esa ultima medición | AB6: clases | AD6: no se cuenta la medicion desde el ultimo veeticilo hasta el apice, porque estaria tirando los valores hacia aabajo, ya q en el mejor de los casos justo a la h actual del apice saldra otro verticilo, pero en otros casos aun estara alargandose el apice y al suponer que ahí estaria el ultimo verticilo, se estaria subestiando esa ultima medición
B7: Densidad (N/ha) | C7: 760
B8: DAP (cm) | C8: 27
B9: H total (m) | C9: 21
B10: HBCV (m) | C10: 9 | G10: =J10 -> (Ápice) | H10: =C9 -> 21 | I10: =IF(H11=0,0,I11+0.1) -> 12 | J10: (Ápice) | K10: =K11+0.1 -> 0.3 | L10: =ROUND(K11+0.1,1) -> 0.3 | M10: =IF(H10=0,0,($C$8^2*(H10/1.3)^(2-2.0881)*($C$9-H10)/($C$9-1.3))^0.5) -> 0 | N10: =PI()/4*M10^2 -> 0 | O10: =IF(N10=0,0,0.818*N10) -> 0 | P10: 0 | R10: =IF(Q10=0,0,P10/Q10) -> 0 | S10: =RAND() -> 0.3627490795 | Y10: 0.2 | Z10: =COUNTIF($L$11:$L$227,Y10) -> 0 | AB10: 0.2 | AC10: 0.3 | AD10: =COUNTIF($L$11:$L$227,AB10)+ COUNTIF($L$11:$L$227,AC10) -> 1
G11: =J11 -> 0 | H11: =ROUND(IF(H10>$C$10,H10-0.1,0),2) -> 20.9 | I11: 11.9 | J11: =IF(H11=0,0,IF(H11=$C$10,1, IF(comp_entre(INDEX($S$10:$S$109,MAX(J12:J$227)),prob_ac(K12),prob_ac(K11))>0,MAX(J12:$J$227)+1,0))) -> 0 | K11: =I11-VLOOKUP(MAX(G12:G$227),G12:I$227,3,FALSE) -> 0.2 | L11: =IF(J11<=1,"-",ROUND(K11,1)) -> - | M11: 1.702148364 | N11: =PI()/4*M11^2 -> 2.27554121 | O11: =IF(N11=0,0,IF(J11=0,0,0.818*N11)) -> 0 | P11: =IF(J11=0,0,O11-IF(J11=MAX($J$11:$J$227),SUM(P$10:P10),SUM(P$10:P10))) -> 0 | Q11: =IF(P11>0,IF(S11<0.2,1,IF(AND(S11>=0.2,S11<0.541),2,IF(AND(S11>=0.541,S11<0.788),3,IF(AND(S11>=0.788,S11<0.941),4,IF(S11>=0.941,5))))),0) -> 0 | R11: =(IF(Q11=0,0,P11/Q11)*4/PI())^0.5 -> 0 | S11: 0.1905985172 | T11: =IF(Q11>=1,"\",IF(Q10>=3,"/","")) ->  | V11: =IF(Q11>=4,"/",IF(Q10>=2,"\","")) ->  | Y11: 0.3 | Z11: =COUNTIF($L$11:$L$227,Y11) -> 1 | AB11: 0.4 | AC11: 0.5 | AD11: =COUNTIF($L$11:$L$227,AB11)+ COUNTIF($L$11:$L$227,AC11) -> 8
B12: Resumen de resultados | G12: 0 | H12: 20.8 | I12: 11.8 | J12: =IF(H12=0,0,IF(H12=$C$10,1, IF(comp_entre(INDEX($S$10:$S$109,MAX(J13:J$227)),prob_ac(K13),prob_ac(K12))>0,MAX(J13:$J$227)+1,0))) -> 0 | K12: =I12-VLOOKUP(MAX(G13:G$227),G13:I$227,3,FALSE) -> 0.1 | L12: =IF(J12<=1,"-",ROUND(K12,1)) -> - | M12: 2.407709929 | N12: =PI()/4*M12^2 -> 4.553005854 | O12: 0 | P12: =IF(J12=0,0,O12-IF(J12=MAX($J$11:$J$227),SUM(P$10:P11),SUM(P$10:P11))) -> 0 | Q12: 0 | R12: 0 | S12: 0.4858513854 | Y12: 0.4 | Z12: =COUNTIF($L$11:$L$227,Y12) -> 4 | AB12: 0.6 | AC12: 0.7 | AD12: 7
B13: Longitud de copa (m) | C13: =C9-C10 -> 12 | G13: 20 | H13: 20.7 | I13: 11.7 | J13: =IF(H13=0,0,IF(H13=$C$10,1, IF(comp_entre(INDEX($S$10:$S$109,MAX(J14:J$227)),prob_ac(K14),prob_ac(K13))>0,MAX(J14:$J$227)+1,0))) -> 20 | K13: =I13-VLOOKUP(MAX(G14:G$227),G14:I$227,3,FALSE) -> 0.4 | L13: 0.4 | M13: 2.949456459 | N13: 6.832409064 | O13: 5.588910614 | P13: =IF(J13=0,0,O13-IF(J13=MAX($J$11:$J$227),SUM(P$10:P12),SUM(P$10:P12))) -> 5.588910614 | Q13: 2 | R13: 1.88626907 | S13: 0.4937252498 | T13: \ | Y13: 0.5 | Z13: 4 | AB13: 0.8 | AC13: 0.9 | AD13: 2
B14: Long.copa estimada (m) [1] | C14: =(C9* 251.2*C7^-0.29)/100 -> 7.705538382 | G14: 0 | H14: 20.6 | I14: 11.6 | J14: =IF(H14=0,0,IF(H14=$C$10,1, IF(comp_entre(INDEX($S$10:$S$109,MAX(J15:J$227)),prob_ac(K15),prob_ac(K14))>0,MAX(J15:$J$227)+1,0))) -> 0 | K14: =I14-VLOOKUP(MAX(G15:G$227),G15:I$227,3,FALSE) -> 0.3 | L14: - | M14: 3.406465543 | N14: 9.113766176 | O14: 0 | P14: =IF(J14=0,0,O14-IF(J14=MAX($J$11:$J$227),SUM(P$10:P13),SUM(P$10:P13))) -> 0 | Q14: 0 | R14: 0 | S14: 0.5329615506 | V14: \ | Y14: 0.6 | Z14: 2 | AB14: 1 | AC14: 1.1 | AD14: 0
B15: HBCV estimada (m) [8] | C15: =C9-C14 -> 13.29446162 | G15: 0 | H15: 20.5 | I15: 11.5 | J15: =IF(H15=0,0,IF(H15=$C$10,1, IF(comp_entre(INDEX($S$10:$S$109,MAX(J16:J$227)),prob_ac(K16),prob_ac(K15))>0,MAX(J16:$J$227)+1,0))) -> 0 | K15: =I15-VLOOKUP(MAX(G16:G$227),G16:I$227,3,FALSE) -> 0.2 | L15: - | M15: 3.809360729 | N15: 11.39709274 | O15: 0 | P15: =IF(J15=0,0,O15-IF(J15=MAX($J$11:$J$227),SUM(P$10:P14),SUM(P$10:P14))) -> 0 | Q15: 0 | R15: 0 | S15: 0.343444083 | Y15: 0.7 | Z15: 5 | AB15: 1.2 | AC15: 1.3 | AD15: 1
B16: Cantidad Verticilos | C16: =COUNTIF(J11:J227,">0") -> 20 | G16: 0 | H16: 20.4 | I16: 11.4 | J16: =IF(H16=0,0,IF(H16=$C$10,1, IF(comp_entre(INDEX($S$10:$S$109,MAX(J17:J$227)),prob_ac(K17),prob_ac(K16))>0,MAX(J17:$J$227)+1,0))) -> 0 | K16: =I16-VLOOKUP(MAX(G17:G$227),G17:I$227,3,FALSE) -> 0.1 | L16: - | M16: 4.173844568 | N16: 13.6824045 | O16: 0 | P16: =IF(J16=0,0,O16-IF(J16=MAX($J$11:$J$227),SUM(P$10:P15),SUM(P$10:P15))) -> 0 | Q16: 0 | R16: 0 | S16: 0.4601178198 | Y16: 0.8 | Z16: 0 | AB16: 1.4 | AC16: 1.5 | AD16: 0
B17: Distancia media entre verticilos (cm) | C17: =AVERAGE(L10:L227)*100 -> 60 | G17: 19 | H17: 20.3 | I17: 11.3 | J17: =IF(H17=0,0,IF(H17=$C$10,1, IF(comp_entre(INDEX($S$10:$S$109,MAX(J18:J$227)),prob_ac(K18),prob_ac(K17))>0,MAX(J18:$J$227)+1,0))) -> 19 | K17: =I17-VLOOKUP(MAX(G18:G$227),G18:I$227,3,FALSE) -> 0.5 | L17: 0.5 | M17: 4.509243369 | N17: 15.96971744 | O17: 13.06322886 | P17: =IF(J17=0,0,O17-IF(J17=MAX($J$11:$J$227),SUM(P$10:P16),SUM(P$10:P16))) -> 7.474318249 | Q17: 2 | R17: 2.181352512 | S17: 0.3286470416 | T17: \ | Y17: 0.9 | Z17: 2 | AB17: 1.6 | AC17: 1.7 | AD17: 0
B18: Distancia entre verticilos mayor (cm) | C18: =MAX(L11:L227)*100 -> 130 | G18: 0 | H18: 20.2 | I18: 11.2 | J18: =IF(H18=0,0,IF(H18=$C$10,1, IF(comp_entre(INDEX($S$10:$S$109,MAX(J19:J$227)),prob_ac(K19),prob_ac(K18))>0,MAX(J19:$J$227)+1,0))) -> 0 | K18: =I18-VLOOKUP(MAX(G19:G$227),G19:I$227,3,FALSE) -> 0.4 | L18: - | M18: 4.821632673 | N18: 18.25904774 | O18: 0 | P18: =IF(J18=0,0,O18-IF(J18=MAX($J$11:$J$227),SUM(P$10:P17),SUM(P$10:P17))) -> 0 | Q18: 0 | R18: 0 | S18: 0.2053277123 | V18: \ | Y18: 1 | Z18: 0 | AB18: 1.8 | AC18: 1.9 | AD18: 0
B19: Distancia entre verticilos menor (cm) | C19: =MIN(L11:L227)*100 -> 30 | G19: 0 | H19: 20.1 | I19: 11.1 | J19: =IF(H19=0,0,IF(H19=$C$10,1, IF(comp_entre(INDEX($S$10:$S$109,MAX(J20:J$227)),prob_ac(K20),prob_ac(K19))>0,MAX(J20:$J$227)+1,0))) -> 0 | K19: =I19-VLOOKUP(MAX(G20:G$227),G20:I$227,3,FALSE) -> 0.3 | L19: - | M19: 5.115231863 | N19: 20.55041183 | O19: 0 | P19: =IF(J19=0,0,O19-IF(J19=MAX($J$11:$J$227),SUM(P$10:P18),SUM(P$10:P18))) -> 0 | Q19: 0 | R19: 0 | S19: 0.5211103836 | Y19: 1.1 | Z19: 0 | AB19: 2 | AC19: 2.1 | AD19: 0
B20: Sumatoria g ramas (cm2) [4] | C20: =SUM(P10:P227) -> 240.5777049 | G20: 0 | H20: 20 | I20: 11 | J20: =IF(H20=0,0,IF(H20=$C$10,1, IF(comp_entre(INDEX($S$10:$S$109,MAX(J21:J$227)),prob_ac(K21),prob_ac(K20))>0,MAX(J21:$J$227)+1,0))) -> 0 | K20: =I20-VLOOKUP(MAX(G21:G$227),G21:I$227,3,FALSE) -> 0.2 | L20: - | M20: 5.393112558 | N20: 22.84382635 | O20: 0 | P20: =IF(J20=0,0,O20-IF(J20=MAX($J$11:$J$227),SUM(P$10:P19),SUM(P$10:P19))) -> 0 | Q20: 0 | R20: 0 | S20: 0.334825717 | Y20: 1.2 | Z20: 0 | AB20: TOTAL | AD20: =SUM(AD10:AD19) -> 19
G21: 0 | H21: 19.9 | I21: 10.9 | J21: =IF(H21=0,0,IF(H21=$C$10,1, IF(comp_entre(INDEX($S$10:$S$109,MAX(J22:J$227)),prob_ac(K22),prob_ac(K21))>0,MAX(J22:$J$227)+1,0))) -> 0 | K21: =I21-VLOOKUP(MAX(G22:G$227),G22:I$227,3,FALSE) -> 0.1 | L21: - | M21: 5.657593243 | N21: 25.13930818 | O21: 0 | P21: =IF(J21=0,0,O21-IF(J21=MAX($J$11:$J$227),SUM(P$10:P20),SUM(P$10:P20))) -> 0 | Q21: 0 | R21: 0 | S21: 0.6973559746 | Y21: 1.3 | Z21: 1
G22: 18 | H22: 19.8 | I22: 10.8 | J22: =IF(H22=0,0,IF(H22=$C$10,1, IF(comp_entre(INDEX($S$10:$S$109,MAX(J23:J$227)),prob_ac(K23),prob_ac(K22))>0,MAX(J23:$J$227)+1,0))) -> 18 | K22: =I22-VLOOKUP(MAX(G23:G$227),G23:I$227,3,FALSE) -> 0.4 | L22: 0.4 | M22: 5.910474897 | N22: 27.43687443 | O22: 22.44336328 | P22: =IF(J22=0,0,O22-IF(J22=MAX($J$11:$J$227),SUM(P$10:P21),SUM(P$10:P21))) -> 9.380134421 | Q22: 4 | R22: 1.727943726 | S22: 0.9097166153 | T22: \ | V22: / | Y22: 1.4 | Z22: 0
G23: 0 | H23: 19.7 | I23: 10.7 | J23: =IF(H23=0,0,IF(H23=$C$10,1, IF(comp_entre(INDEX($S$10:$S$109,MAX(J24:J$227)),prob_ac(K24),prob_ac(K23))>0,MAX(J24:$J$227)+1,0))) -> 0 | K23: =I23-VLOOKUP(MAX(G24:G$227),G24:I$227,3,FALSE) -> 0.3 | L23: - | M23: 6.153189562 | N23: 29.73654246 | O23: 0 | P23: =IF(J23=0,0,O23-IF(J23=MAX($J$11:$J$227),SUM(P$10:P22),SUM(P$10:P22))) -> 0 | Q23: 0 | R23: 0 | S23: 0.7415538319 | T23: / | V23: \ | Y23: 1.5 | Z23: 0
G24: 0 | H24: 19.6 | I24: 10.6 | J24: =IF(H24=0,0,IF(H24=$C$10,1, IF(comp_entre(INDEX($S$10:$S$109,MAX(J25:J$227)),prob_ac(K25),prob_ac(K24))>0,MAX(J25:$J$227)+1,0))) -> 0 | K24: =I24-VLOOKUP(MAX(G25:G$227),G25:I$227,3,FALSE) -> 0.2 | L24: - | M24: 6.386898194 | N24: 32.03832987 | O24: 0 | P24: =IF(J24=0,0,O24-IF(J24=MAX($J$11:$J$227),SUM(P$10:P23),SUM(P$10:P23))) -> 0 | Q24: 0 | R24: 0 | S24: 0.08623201362 | Y24: 1.6 | Z24: 0
G25: 0 | H25: 19.5 | I25: 10.5 | J25: =IF(H25=0,0,IF(H25=$C$10,1, IF(comp_entre(INDEX($S$10:$S$109,MAX(J26:J$227)),prob_ac(K26),prob_ac(K25))>0,MAX(J26:$J$227)+1,0))) -> 0 | K25: =I25-VLOOKUP(MAX(G26:G$227),G26:I$227,3,FALSE) -> 0.1 | L25: - | M25: 6.612557487 | N25: 34.34225453 | O25: 0 | P25: =IF(J25=0,0,O25-IF(J25=MAX($J$11:$J$227),SUM(P$10:P24),SUM(P$10:P24))) -> 0 | Q25: 0 | R25: 0 | S25: 0.549082897 | Y25: 1.7 | Z25: 0
G26: 17 | H26: 19.4 | I26: 10.4 | J26: =IF(H26=0,0,IF(H26=$C$10,1, IF(comp_entre(INDEX($S$10:$S$109,MAX(J27:J$227)),prob_ac(K27),prob_ac(K26))>0,MAX(J27:$J$227)+1,0))) -> 17 | K26: =I26-VLOOKUP(MAX(G27:G$227),G27:I$227,3,FALSE) -> 0.7 | L26: 0.7 | M26: 6.830966899 | N26: 36.64833453 | O26: 29.97833765 | P26: =IF(J26=0,0,O26-IF(J26=MAX($J$11:$J$227),SUM(P$10:P25),SUM(P$10:P25))) -> 7.534974364 | Q26: 1 | R26: 3.097390406 | S26: 0.1459813481 | T26: \ | Y26: 1.8 | Z26: 0
G27: 0 | H27: 19.3 | I27: 10.3 | J27: =IF(H27=0,0,IF(H27=$C$10,1, IF(comp_entre(INDEX($S$10:$S$109,MAX(J28:J$227)),prob_ac(K28),prob_ac(K27))>0,MAX(J28:$J$227)+1,0))) -> 0 | K27: =I27-VLOOKUP(MAX(G28:G$227),G28:I$227,3,FALSE) -> 0.6 | L27: - | M27: 7.042802618 | N27: 38.95658827 | O27: 0 | P27: =IF(J27=0,0,O27-IF(J27=MAX($J$11:$J$227),SUM(P$10:P26),SUM(P$10:P26))) -> 0 | Q27: 0 | R27: 0 | S27: 0.2423393979 | Y27: 1.9 | Z27: 0
G28: 0 | H28: 19.2 | I28: 10.2 | J28: =IF(H28=0,0,IF(H28=$C$10,1, IF(comp_entre(INDEX($S$10:$S$109,MAX(J29:J$227)),prob_ac(K29),prob_ac(K28))>0,MAX(J29:$J$227)+1,0))) -> 0 | K28: =I28-VLOOKUP(MAX(G29:G$227),G29:I$227,3,FALSE) -> 0.5 | L28: - | M28: 7.248642635 | N28: 41.26703437 | O28: 0 | P28: =IF(J28=0,0,O28-IF(J28=MAX($J$11:$J$227),SUM(P$10:P27),SUM(P$10:P27))) -> 0 | Q28: 0 | R28: 0 | S28: 0.1793703494 | Y28: 2 | Z28: 0
G29: 0 | H29: 19.1 | I29: 10.1 | J29: =IF(H29=0,0,IF(H29=$C$10,1, IF(comp_entre(INDEX($S$10:$S$109,MAX(J30:J$227)),prob_ac(K30),prob_ac(K29))>0,MAX(J30:$J$227)+1,0))) -> 0 | K29: =I29-VLOOKUP(MAX(G30:G$227),G30:I$227,3,FALSE) -> 0.4 | L29: - | M29: 7.448985629 | N29: 43.57969176 | O29: 0 | P29: =IF(J29=0,0,O29-IF(J29=MAX($J$11:$J$227),SUM(P$10:P28),SUM(P$10:P28))) -> 0 | Q29: 0 | R29: 0 | S29: 0.1676051106 | Y29: TOTAL | Z29: =SUM(Z10:Z28) -> 19
G30: 0 | H30: 19 | I30: 10 | J30: =IF(H30=0,0,IF(H30=$C$10,1, IF(comp_entre(INDEX($S$10:$S$109,MAX(J31:J$227)),prob_ac(K31),prob_ac(K30))>0,MAX(J31:$J$227)+1,0))) -> 0 | K30: =I30-VLOOKUP(MAX(G31:G$227),G31:I$227,3,FALSE) -> 0.3 | L30: - | M30: 7.644265411 | N30: 45.89457963 | O30: 0 | P30: =IF(J30=0,0,O30-IF(J30=MAX($J$11:$J$227),SUM(P$10:P29),SUM(P$10:P29))) -> 0 | Q30: 0 | R30: 0 | S30: 0.894634805
G31: 0 | H31: 18.9 | I31: 9.9 | J31: =IF(H31=0,0,IF(H31=$C$10,1, IF(comp_entre(INDEX($S$10:$S$109,MAX(J32:J$227)),prob_ac(K32),prob_ac(K31))>0,MAX(J32:$J$227)+1,0))) -> 0 | K31: =I31-VLOOKUP(MAX(G32:G$227),G32:I$227,3,FALSE) -> 0.2 | L31: - | M31: 7.834862167 | N31: 48.21171745 | O31: 0 | P31: =IF(J31=0,0,O31-IF(J31=MAX($J$11:$J$227),SUM(P$10:P30),SUM(P$10:P30))) -> 0 | Q31: 0 | R31: 0 | S31: 0.3118250503
G32: 0 | H32: 18.8 | I32: 9.8 | J32: =IF(H32=0,0,IF(H32=$C$10,1, IF(comp_entre(INDEX($S$10:$S$109,MAX(J33:J$227)),prob_ac(K33),prob_ac(K32))>0,MAX(J33:$J$227)+1,0))) -> 0 | K32: =I32-VLOOKUP(MAX(G33:G$227),G33:I$227,3,FALSE) -> 0.1 | L32: - | M32: 8.021111305 | N32: 50.53112499 | O32: 0 | P32: =IF(J32=0,0,O32-IF(J32=MAX($J$11:$J$227),SUM(P$10:P31),SUM(P$10:P31))) -> 0 | Q32: 0 | R32: 0 | S32: 0.334787693
G33: 16 | H33: 18.7 | I33: 9.7 | J33: =IF(H33=0,0,IF(H33=$C$10,1, IF(comp_entre(INDEX($S$10:$S$109,MAX(J34:J$227)),prob_ac(K34),prob_ac(K33))>0,MAX(J34:$J$227)+1,0))) -> 16 | K33: =I33-VLOOKUP(MAX(G34:G$227),G34:I$227,3,FALSE) -> 0.3 | L33: 0.3 | M33: 8.203310516 | N33: 52.85282231 | O33: 43.23360865 | P33: =IF(J33=0,0,O33-IF(J33=MAX($J$11:$J$227),SUM(P$10:P32),SUM(P$10:P32))) -> 13.255271 | Q33: 1 | R33: 4.108179063 | S33: 0.04854825437 | T33: \
G34: 0 | H34: 18.6 | I34: 9.6 | J34: =IF(H34=0,0,IF(H34=$C$10,1, IF(comp_entre(INDEX($S$10:$S$109,MAX(J35:J$227)),prob_ac(K35),prob_ac(K34))>0,MAX(J35:$J$227)+1,0))) -> 0 | K34: =I34-VLOOKUP(MAX(G35:G$227),G35:I$227,3,FALSE) -> 0.2 | L34: - | M34: 8.381725456 | N34: 55.17682978 | O34: 0 | P34: =IF(J34=0,0,O34-IF(J34=MAX($J$11:$J$227),SUM(P$10:P33),SUM(P$10:P33))) -> 0 | Q34: 0 | R34: 0 | S34: 0.2222327137
G35: 0 | H35: 18.5 | I35: 9.5 | J35: =IF(H35=0,0,IF(H35=$C$10,1, IF(comp_entre(INDEX($S$10:$S$109,MAX(J36:J$227)),prob_ac(K36),prob_ac(K35))>0,MAX(J36:$J$227)+1,0))) -> 0 | K35: =I35-VLOOKUP(MAX(G36:G$227),G36:I$227,3,FALSE) -> 0.1 | L35: - | M35: 8.556594388 | N35: 57.50316807 | O35: 0 | P35: =IF(J35=0,0,O35-IF(J35=MAX($J$11:$J$227),SUM(P$10:P34),SUM(P$10:P34))) -> 0 | Q35: 0 | R35: 0 | S35: 0.3225272398
G36: 15 | H36: 18.4 | I36: 9.4 | J36: =IF(H36=0,0,IF(H36=$C$10,1, IF(comp_entre(INDEX($S$10:$S$109,MAX(J37:J$227)),prob_ac(K37),prob_ac(K36))>0,MAX(J37:$J$227)+1,0))) -> 15 | K36: =I36-VLOOKUP(MAX(G37:G$227),G37:I$227,3,FALSE) -> 0.9 | L36: 0.9 | M36: 8.728131979 | N36: 59.83185816 | O36: 48.94245997 | P36: =IF(J36=0,0,O36-IF(J36=MAX($J$11:$J$227),SUM(P$10:P35),SUM(P$10:P35))) -> 5.708851321 | Q36: 2 | R36: 1.906401749 | S36: 0.3800955244 | T36: \
G37: 0 | H37: 18.3 | I37: 9.3 | J37: =IF(H37=0,0,IF(H37=$C$10,1, IF(comp_entre(INDEX($S$10:$S$109,MAX(J38:J$227)),prob_ac(K38),prob_ac(K37))>0,MAX(J38:$J$227)+1,0))) -> 0 | K37: =I37-VLOOKUP(MAX(G38:G$227),G38:I$227,3,FALSE) -> 0.8 | L37: - | M37: 8.896532453 | N37: 62.16292136 | O37: 0 | P37: =IF(J37=0,0,O37-IF(J37=MAX($J$11:$J$227),SUM(P$10:P36),SUM(P$10:P36))) -> 0 | Q37: 0 | R37: 0 | S37: 0.9658131144 | V37: \
G38: 0 | H38: 18.2 | I38: 9.2 | J38: =IF(H38=0,0,IF(H38=$C$10,1, IF(comp_entre(INDEX($S$10:$S$109,MAX(J39:J$227)),prob_ac(K39),prob_ac(K38))>0,MAX(J39:$J$227)+1,0))) -> 0 | K38: =I38-VLOOKUP(MAX(G39:G$227),G39:I$227,3,FALSE) -> 0.7 | L38: - | M38: 9.061972226 | N38: 64.49637931 | O38: 0 | P38: =IF(J38=0,0,O38-IF(J38=MAX($J$11:$J$227),SUM(P$10:P37),SUM(P$10:P37))) -> 0 | Q38: 0 | R38: 0 | S38: 0.9582063675
G39: 0 | H39: 18.1 | I39: 9.1 | J39: =IF(H39=0,0,IF(H39=$C$10,1, IF(comp_entre(INDEX($S$10:$S$109,MAX(J40:J$227)),prob_ac(K40),prob_ac(K39))>0,MAX(J40:$J$227)+1,0))) -> 0 | K39: =I39-VLOOKUP(MAX(G40:G$227),G40:I$227,3,FALSE) -> 0.6 | L39: - | M39: 9.224612112 | N39: 66.83225397 | O39: 0 | P39: =IF(J39=0,0,O39-IF(J39=MAX($J$11:$J$227),SUM(P$10:P38),SUM(P$10:P38))) -> 0 | Q39: 0 | R39: 0 | S39: 0.5878837669
G40: 0 | H40: 18 | I40: 9 | J40: =IF(H40=0,0,IF(H40=$C$10,1, IF(comp_entre(INDEX($S$10:$S$109,MAX(J41:J$227)),prob_ac(K41),prob_ac(K40))>0,MAX(J41:$J$227)+1,0))) -> 0 | K40: =I40-VLOOKUP(MAX(G41:G$227),G41:I$227,3,FALSE) -> 0.5 | L40: - | M40: 9.384599197 | N40: 69.17056767 | O40: 0 | P40: =IF(J40=0,0,O40-IF(J40=MAX($J$11:$J$227),SUM(P$10:P39),SUM(P$10:P39))) -> 0 | Q40: 0 | R40: 0 | S40: 0.5297629321
G41: 0 | H41: 17.9 | I41: 8.9 | J41: =IF(H41=0,0,IF(H41=$C$10,1, IF(comp_entre(INDEX($S$10:$S$109,MAX(J42:J$227)),prob_ac(K42),prob_ac(K41))>0,MAX(J42:$J$227)+1,0))) -> 0 | K41: =I41-VLOOKUP(MAX(G42:G$227),G42:I$227,3,FALSE) -> 0.4 | L41: - | M41: 9.542068428 | N41: 71.51134307 | O41: 0 | P41: =IF(J41=0,0,O41-IF(J41=MAX($J$11:$J$227),SUM(P$10:P40),SUM(P$10:P40))) -> 0 | Q41: 0 | R41: 0 | S41: 0.371996487
G42: 0 | H42: 17.8 | I42: 8.8 | J42: =IF(H42=0,0,IF(H42=$C$10,1, IF(comp_entre(INDEX($S$10:$S$109,MAX(J43:J$227)),prob_ac(K43),prob_ac(K42))>0,MAX(J43:$J$227)+1,0))) -> 0 | K42: =I42-VLOOKUP(MAX(G43:G$227),G43:I$227,3,FALSE) -> 0.3 | L42: - | M42: 9.697143977 | N42: 73.85460317 | O42: 0 | P42: =IF(J42=0,0,O42-IF(J42=MAX($J$11:$J$227),SUM(P$10:P41),SUM(P$10:P41))) -> 0 | Q42: 0 | R42: 0 | S42: 0.06000059439
G43: =J43 -> 0 | H43: 17.7 | I43: 8.7 | J43: =IF(H43=0,0,IF(H43=$C$10,1, IF(comp_entre(INDEX($S$10:$S$109,MAX(J44:J$227)),prob_ac(K44),prob_ac(K43))>0,MAX(J44:$J$227)+1,0))) -> 0 | K43: =I43-VLOOKUP(MAX(G44:G$227),G44:I$227,3,FALSE) -> 0.2 | L43: - | M43: 9.849940414 | N43: 76.20037138 | O43: =IF(N43=0,0,IF(J43=0,0,0.818*N43)) -> 0 | P43: =IF(J43=0,0,O43-IF(J43=MAX($J$11:$J$227),SUM(P$10:P42),SUM(P$10:P42))) -> 0 | Q43: =IF(P43>0,IF(S43<0.2,1,IF(AND(S43>=0.2,S43<0.541),2,IF(AND(S43>=0.541,S43<0.788),3,IF(AND(S43>=0.788,S43<0.941),4,IF(S43>=0.941,5))))),0) -> 0 | R43: =(IF(Q43=0,0,P43/Q43)*4/PI())^0.5 -> 0 | S43: 0.3468579588 | T43: =IF(Q43>=1,"\",IF(Q42>=3,"/","")) ->  | V43: =IF(Q43>=4,"/",IF(Q42>=2,"\","")) -> 
G44: 0 | H44: 17.6 | I44: 8.6 | J44: =IF(H44=0,0,IF(H44=$C$10,1, IF(comp_entre(INDEX($S$10:$S$109,MAX(J45:J$227)),prob_ac(K45),prob_ac(K44))>0,MAX(J45:$J$227)+1,0))) -> 0 | K44: =I44-VLOOKUP(MAX(G45:G$227),G45:I$227,3,FALSE) -> 0.1 | L44: - | M44: 10.00056372 | N44: 78.54867144 | O44: 0 | P44: =IF(J44=0,0,O44-IF(J44=MAX($J$11:$J$227),SUM(P$10:P43),SUM(P$10:P43))) -> 0 | Q44: 0 | R44: 0 | S44: 0.7841857552
G45: 14 | H45: 17.5 | I45: 8.5 | J45: =IF(H45=0,0,IF(H45=$C$10,1, IF(comp_entre(INDEX($S$10:$S$109,MAX(J46:J$227)),prob_ac(K46),prob_ac(K45))>0,MAX(J46:$J$227)+1,0))) -> 14 | K45: =I45-VLOOKUP(MAX(G46:G$227),G46:I$227,3,FALSE) -> 1.3 | L45: 1.3 | M45: 10.14911216 | N45: 80.89952751 | O45: 66.1758135 | P45: =IF(J45=0,0,O45-IF(J45=MAX($J$11:$J$227),SUM(P$10:P44),SUM(P$10:P44))) -> 17.23335353 | Q45: 3 | R45: 2.704452329 | S45: 0.7801308996 | T45: \
G46: 0 | H46: 17.4 | I46: 8.4 | J46: =IF(H46=0,0,IF(H46=$C$10,1, IF(comp_entre(INDEX($S$10:$S$109,MAX(J47:J$227)),prob_ac(K47),prob_ac(K46))>0,MAX(J47:$J$227)+1,0))) -> 0 | K46: =I46-VLOOKUP(MAX(G47:G$227),G47:I$227,3,FALSE) -> 1.2 | L46: - | M46: 10.29567706 | N46: 83.2529641 | O46: 0 | P46: =IF(J46=0,0,O46-IF(J46=MAX($J$11:$J$227),SUM(P$10:P45),SUM(P$10:P45))) -> 0 | Q46: 0 | R46: 0 | S46: 0.9711123744 | T46: / | V46: \
G47: 0 | H47: 17.3 | I47: 8.3 | J47: =IF(H47=0,0,IF(H47=$C$10,1, IF(comp_entre(INDEX($S$10:$S$109,MAX(J48:J$227)),prob_ac(K48),prob_ac(K47))>0,MAX(J48:$J$227)+1,0))) -> 0 | K47: =I47-VLOOKUP(MAX(G48:G$227),G48:I$227,3,FALSE) -> 1.1 | L47: - | M47: 10.44034348 | N47: 85.60900614 | O47: 0 | P47: =IF(J47=0,0,O47-IF(J47=MAX($J$11:$J$227),SUM(P$10:P46),SUM(P$10:P46))) -> 0 | Q47: 0 | R47: 0 | S47: 0.5640249138
G48: 0 | H48: 17.2 | I48: 8.2 | J48: =IF(H48=0,0,IF(H48=$C$10,1, IF(comp_entre(INDEX($S$10:$S$109,MAX(J49:J$227)),prob_ac(K49),prob_ac(K48))>0,MAX(J49:$J$227)+1,0))) -> 0 | K48: =I48-VLOOKUP(MAX(G49:G$227),G49:I$227,3,FALSE) -> 1 | L48: - | M48: 10.5831908 | N48: 87.96767898 | O48: 0 | P48: =IF(J48=0,0,O48-IF(J48=MAX($J$11:$J$227),SUM(P$10:P47),SUM(P$10:P47))) -> 0 | Q48: 0 | R48: 0 | S48: 0.7265368041
G49: 0 | H49: 17.1 | I49: 8.1 | J49: =IF(H49=0,0,IF(H49=$C$10,1, IF(comp_entre(INDEX($S$10:$S$109,MAX(J50:J$227)),prob_ac(K50),prob_ac(K49))>0,MAX(J50:$J$227)+1,0))) -> 0 | K49: =I49-VLOOKUP(MAX(G50:G$227),G50:I$227,3,FALSE) -> 0.9 | L49: - | M49: 10.72429324 | N49: 90.32900837 | O49: 0 | P49: =IF(J49=0,0,O49-IF(J49=MAX($J$11:$J$227),SUM(P$10:P48),SUM(P$10:P48))) -> 0 | Q49: 0 | R49: 0 | S49: 0.545668009
G50: 0 | H50: 17 | I50: 8 | J50: =IF(H50=0,0,IF(H50=$C$10,1, IF(comp_entre(INDEX($S$10:$S$109,MAX(J51:J$227)),prob_ac(K51),prob_ac(K50))>0,MAX(J51:$J$227)+1,0))) -> 0 | K50: =I50-VLOOKUP(MAX(G51:G$227),G51:I$227,3,FALSE) -> 0.8 | L50: - | M50: 10.86372032 | N50: 92.69302047 | O50: 0 | P50: =IF(J50=0,0,O50-IF(J50=MAX($J$11:$J$227),SUM(P$10:P49),SUM(P$10:P49))) -> 0 | Q50: 0 | R50: 0 | S50: 0.8064476747
G51: 0 | H51: 16.9 | I51: 7.9 | J51: =IF(H51=0,0,IF(H51=$C$10,1, IF(comp_entre(INDEX($S$10:$S$109,MAX(J52:J$227)),prob_ac(K52),prob_ac(K51))>0,MAX(J52:$J$227)+1,0))) -> 0 | K51: =I51-VLOOKUP(MAX(G52:G$227),G52:I$227,3,FALSE) -> 0.7 | L51: - | M51: 11.00153728 | N51: 95.05974192 | O51: 0 | P51: =IF(J51=0,0,O51-IF(J51=MAX($J$11:$J$227),SUM(P$10:P50),SUM(P$10:P50))) -> 0 | Q51: 0 | R51: 0 | S51: 0.6666786577
G52: 0 | H52: 16.8 | I52: 7.8 | J52: =IF(H52=0,0,IF(H52=$C$10,1, IF(comp_entre(INDEX($S$10:$S$109,MAX(J53:J$227)),prob_ac(K53),prob_ac(K52))>0,MAX(J53:$J$227)+1,0))) -> 0 | K52: =I52-VLOOKUP(MAX(G53:G$227),G53:I$227,3,FALSE) -> 0.6 | L52: - | M52: 11.13780544 | N52: 97.42919978 | O52: 0 | P52: =IF(J52=0,0,O52-IF(J52=MAX($J$11:$J$227),SUM(P$10:P51),SUM(P$10:P51))) -> 0 | Q52: 0 | R52: 0 | S52: 0.3590048428
G53: 0 | H53: 16.7 | I53: 7.7 | J53: =IF(H53=0,0,IF(H53=$C$10,1, IF(comp_entre(INDEX($S$10:$S$109,MAX(J54:J$227)),prob_ac(K54),prob_ac(K53))>0,MAX(J54:$J$227)+1,0))) -> 0 | K53: =I53-VLOOKUP(MAX(G54:G$227),G54:I$227,3,FALSE) -> 0.5 | L53: - | M53: 11.27258251 | N53: 99.80142155 | O53: 0 | P53: =IF(J53=0,0,O53-IF(J53=MAX($J$11:$J$227),SUM(P$10:P52),SUM(P$10:P52))) -> 0 | Q53: 0 | R53: 0 | S53: 0.1223726379
G54: 0 | H54: 16.6 | I54: 7.6 | J54: =IF(H54=0,0,IF(H54=$C$10,1, IF(comp_entre(INDEX($S$10:$S$109,MAX(J55:J$227)),prob_ac(K55),prob_ac(K54))>0,MAX(J55:$J$227)+1,0))) -> 0 | K54: =I54-VLOOKUP(MAX(G55:G$227),G55:I$227,3,FALSE) -> 0.4 | L54: - | M54: 11.40592293 | N54: 102.1764352 | O54: 0 | P54: =IF(J54=0,0,O54-IF(J54=MAX($J$11:$J$227),SUM(P$10:P53),SUM(P$10:P53))) -> 0 | Q54: 0 | R54: 0 | S54: 0.2933569969
G55: 0 | H55: 16.5 | I55: 7.5 | J55: =IF(H55=0,0,IF(H55=$C$10,1, IF(comp_entre(INDEX($S$10:$S$109,MAX(J56:J$227)),prob_ac(K56),prob_ac(K55))>0,MAX(J56:$J$227)+1,0))) -> 0 | K55: =I55-VLOOKUP(MAX(G56:G$227),G56:I$227,3,FALSE) -> 0.3 | L55: - | M55: 11.53787806 | N55: 104.5542693 | O55: 0 | P55: =IF(J55=0,0,O55-IF(J55=MAX($J$11:$J$227),SUM(P$10:P54),SUM(P$10:P54))) -> 0 | Q55: 0 | R55: 0 | S55: 0.9172131239
G56: 0 | H56: 16.4 | I56: 7.4 | J56: =IF(H56=0,0,IF(H56=$C$10,1, IF(comp_entre(INDEX($S$10:$S$109,MAX(J57:J$227)),prob_ac(K57),prob_ac(K56))>0,MAX(J57:$J$227)+1,0))) -> 0 | K56: =I56-VLOOKUP(MAX(G57:G$227),G57:I$227,3,FALSE) -> 0.2 | L56: - | M56: 11.66849649 | N56: 106.9349527 | O56: 0 | P56: =IF(J56=0,0,O56-IF(J56=MAX($J$11:$J$227),SUM(P$10:P55),SUM(P$10:P55))) -> 0 | Q56: 0 | R56: 0 | S56: 0.0220328515
G57: 0 | H57: 16.3 | I57: 7.3 | J57: =IF(H57=0,0,IF(H57=$C$10,1, IF(comp_entre(INDEX($S$10:$S$109,MAX(J58:J$227)),prob_ac(K58),prob_ac(K57))>0,MAX(J58:$J$227)+1,0))) -> 0 | K57: =I57-VLOOKUP(MAX(G58:G$227),G58:I$227,3,FALSE) -> 0.1 | L57: - | M57: 11.79782421 | N57: 109.3185148 | O57: 0 | P57: =IF(J57=0,0,O57-IF(J57=MAX($J$11:$J$227),SUM(P$10:P56),SUM(P$10:P56))) -> 0 | Q57: 0 | R57: 0 | S57: 0.930914692
G58: 13 | H58: 16.2 | I58: 7.2 | J58: =IF(H58=0,0,IF(H58=$C$10,1, IF(comp_entre(INDEX($S$10:$S$109,MAX(J59:J$227)),prob_ac(K59),prob_ac(K58))>0,MAX(J59:$J$227)+1,0))) -> 13 | K58: =I58-VLOOKUP(MAX(G59:G$227),G59:I$227,3,FALSE) -> 0.9 | L58: 0.9 | M58: 11.9259048 | N58: 111.7049857 | O58: 91.37467833 | P58: =IF(J58=0,0,O58-IF(J58=MAX($J$11:$J$227),SUM(P$10:P57),SUM(P$10:P57))) -> 25.19886483 | Q58: 3 | R58: 3.270279865 | S58: 0.672902697 | T58: \
G59: 0 | H59: 16.1 | I59: 7.1 | J59: =IF(H59=0,0,IF(H59=$C$10,1, IF(comp_entre(INDEX($S$10:$S$109,MAX(J60:J$227)),prob_ac(K60),prob_ac(K59))>0,MAX(J60:$J$227)+1,0))) -> 0 | K59: =I59-VLOOKUP(MAX(G60:G$227),G60:I$227,3,FALSE) -> 0.8 | L59: - | M59: 12.05277962 | N59: 114.0943959 | O59: 0 | P59: =IF(J59=0,0,O59-IF(J59=MAX($J$11:$J$227),SUM(P$10:P58),SUM(P$10:P58))) -> 0 | Q59: 0 | R59: 0 | S59: 0.07291670393 | T59: / | V59: \
G60: 0 | H60: 16 | I60: 7 | J60: =IF(H60=0,0,IF(H60=$C$10,1, IF(comp_entre(INDEX($S$10:$S$109,MAX(J61:J$227)),prob_ac(K61),prob_ac(K60))>0,MAX(J61:$J$227)+1,0))) -> 0 | K60: =I60-VLOOKUP(MAX(G61:G$227),G61:I$227,3,FALSE) -> 0.7 | L60: - | M60: 12.178488 | N60: 116.4867763 | O60: 0 | P60: =IF(J60=0,0,O60-IF(J60=MAX($J$11:$J$227),SUM(P$10:P59),SUM(P$10:P59))) -> 0 | Q60: 0 | R60: 0 | S60: 0.7739593231
G61: 0 | H61: 15.9 | I61: 6.9 | J61: =IF(H61=0,0,IF(H61=$C$10,1, IF(comp_entre(INDEX($S$10:$S$109,MAX(J62:J$227)),prob_ac(K62),prob_ac(K61))>0,MAX(J62:$J$227)+1,0))) -> 0 | K61: =I61-VLOOKUP(MAX(G62:G$227),G62:I$227,3,FALSE) -> 0.6 | L61: - | M61: 12.30306732 | N61: 118.8821586 | O61: 0 | P61: =IF(J61=0,0,O61-IF(J61=MAX($J$11:$J$227),SUM(P$10:P60),SUM(P$10:P60))) -> 0 | Q61: 0 | R61: 0 | S61: 0.2527011752
G62: 0 | H62: 15.8 | I62: 6.8 | J62: =IF(H62=0,0,IF(H62=$C$10,1, IF(comp_entre(INDEX($S$10:$S$109,MAX(J63:J$227)),prob_ac(K63),prob_ac(K62))>0,MAX(J63:$J$227)+1,0))) -> 0 | K62: =I62-VLOOKUP(MAX(G63:G$227),G63:I$227,3,FALSE) -> 0.5 | L62: - | M62: 12.42655318 | N62: 121.2805749 | O62: 0 | P62: =IF(J62=0,0,O62-IF(J62=MAX($J$11:$J$227),SUM(P$10:P61),SUM(P$10:P61))) -> 0 | Q62: 0 | R62: 0 | S62: 0.8432914082
G63: 0 | H63: 15.7 | I63: 6.7 | J63: =IF(H63=0,0,IF(H63=$C$10,1, IF(comp_entre(INDEX($S$10:$S$109,MAX(J64:J$227)),prob_ac(K64),prob_ac(K63))>0,MAX(J64:$J$227)+1,0))) -> 0 | K63: =I63-VLOOKUP(MAX(G64:G$227),G64:I$227,3,FALSE) -> 0.4 | L63: - | M63: 12.54897953 | N63: 123.682058 | O63: 0 | P63: =IF(J63=0,0,O63-IF(J63=MAX($J$11:$J$227),SUM(P$10:P62),SUM(P$10:P62))) -> 0 | Q63: 0 | R63: 0 | S63: 0.5895760377
G64: 0 | H64: 15.6 | I64: 6.6 | J64: =IF(H64=0,0,IF(H64=$C$10,1, IF(comp_entre(INDEX($S$10:$S$109,MAX(J65:J$227)),prob_ac(K65),prob_ac(K64))>0,MAX(J65:$J$227)+1,0))) -> 0 | K64: =I64-VLOOKUP(MAX(G65:G$227),G65:I$227,3,FALSE) -> 0.3 | L64: - | M64: 12.67037875 | N64: 126.0866411 | O64: 0 | P64: =IF(J64=0,0,O64-IF(J64=MAX($J$11:$J$227),SUM(P$10:P63),SUM(P$10:P63))) -> 0 | Q64: 0 | R64: 0 | S64: 0.3052820219
G65: 0 | H65: 15.5 | I65: 6.5 | J65: =IF(H65=0,0,IF(H65=$C$10,1, IF(comp_entre(INDEX($S$10:$S$109,MAX(J66:J$227)),prob_ac(K66),prob_ac(K65))>0,MAX(J66:$J$227)+1,0))) -> 0 | K65: =I65-VLOOKUP(MAX(G66:G$227),G66:I$227,3,FALSE) -> 0.2 | L65: - | M65: 12.79078177 | N65: 128.4943583 | O65: 0 | P65: =IF(J65=0,0,O65-IF(J65=MAX($J$11:$J$227),SUM(P$10:P64),SUM(P$10:P64))) -> 0 | Q65: 0 | R65: 0 | S65: 0.4009553074
G66: 0 | H66: 15.4 | I66: 6.4 | J66: =IF(H66=0,0,IF(H66=$C$10,1, IF(comp_entre(INDEX($S$10:$S$109,MAX(J67:J$227)),prob_ac(K67),prob_ac(K66))>0,MAX(J67:$J$227)+1,0))) -> 0 | K66: =I66-VLOOKUP(MAX(G67:G$227),G67:I$227,3,FALSE) -> 0.1 | L66: - | M66: 12.91021817 | N66: 130.905244 | O66: 0 | P66: =IF(J66=0,0,O66-IF(J66=MAX($J$11:$J$227),SUM(P$10:P65),SUM(P$10:P65))) -> 0 | Q66: 0 | R66: 0 | S66: 0.8957786355
G67: 12 | H67: 15.3 | I67: 6.3 | J67: =IF(H67=0,0,IF(H67=$C$10,1, IF(comp_entre(INDEX($S$10:$S$109,MAX(J68:J$227)),prob_ac(K68),prob_ac(K67))>0,MAX(J68:$J$227)+1,0))) -> 12 | K67: =I67-VLOOKUP(MAX(G68:G$227),G68:I$227,3,FALSE) -> 0.5 | L67: 0.5 | M67: 13.02871626 | N67: 133.3193334 | O67: 109.0552147 | P67: =IF(J67=0,0,O67-IF(J67=MAX($J$11:$J$227),SUM(P$10:P66),SUM(P$10:P66))) -> 17.68053638 | Q67: 4 | R67: 2.372317332 | S67: 0.7971907025 | T67: \ | V67: /
G68: 0 | H68: 15.2 | I68: 6.2 | J68: =IF(H68=0,0,IF(H68=$C$10,1, IF(comp_entre(INDEX($S$10:$S$109,MAX(J69:J$227)),prob_ac(K69),prob_ac(K68))>0,MAX(J69:$J$227)+1,0))) -> 0 | K68: =I68-VLOOKUP(MAX(G69:G$227),G69:I$227,3,FALSE) -> 0.4 | L68: - | M68: 13.14630314 | N68: 135.7366624 | O68: 0 | P68: =IF(J68=0,0,O68-IF(J68=MAX($J$11:$J$227),SUM(P$10:P67),SUM(P$10:P67))) -> 0 | Q68: 0 | R68: 0 | S68: 0.875733586 | T68: / | V68: \
G69: 0 | H69: 15.1 | I69: 6.1 | J69: =IF(H69=0,0,IF(H69=$C$10,1, IF(comp_entre(INDEX($S$10:$S$109,MAX(J70:J$227)),prob_ac(K70),prob_ac(K69))>0,MAX(J70:$J$227)+1,0))) -> 0 | K69: =I69-VLOOKUP(MAX(G70:G$227),G70:I$227,3,FALSE) -> 0.3 | L69: - | M69: 13.26300481 | N69: 138.1572676 | O69: 0 | P69: =IF(J69=0,0,O69-IF(J69=MAX($J$11:$J$227),SUM(P$10:P68),SUM(P$10:P68))) -> 0 | Q69: 0 | R69: 0 | S69: 0.691790209
G70: =J70 -> 0 | H70: 15 | I70: 6 | J70: =IF(H70=0,0,IF(H70=$C$10,1, IF(comp_entre(INDEX($S$10:$S$109,MAX(J71:J$227)),prob_ac(K71),prob_ac(K70))>0,MAX(J71:$J$227)+1,0))) -> 0 | K70: =I70-VLOOKUP(MAX(G71:G$227),G71:I$227,3,FALSE) -> 0.2 | L70: - | M70: 13.37884619 | N70: 140.5811861 | O70: =IF(N70=0,0,IF(J70=0,0,0.818*N70)) -> 0 | P70: =IF(J70=0,0,O70-IF(J70=MAX($J$11:$J$227),SUM(P$10:P69),SUM(P$10:P69))) -> 0 | Q70: 0 | R70: 0 | S70: 0.8325409771
G71: =J71 -> 0 | H71: 14.9 | I71: 5.9 | J71: =IF(H71=0,0,IF(H71=$C$10,1, IF(comp_entre(INDEX($S$10:$S$109,MAX(J72:J$227)),prob_ac(K72),prob_ac(K71))>0,MAX(J72:$J$227)+1,0))) -> 0 | K71: =I71-VLOOKUP(MAX(G72:G$227),G72:I$227,3,FALSE) -> 0.1 | L71: - | M71: 13.49385124 | N71: 143.0084559 | O71: 0 | P71: =IF(J71=0,0,O71-IF(J71=MAX($J$11:$J$227),SUM(P$10:P70),SUM(P$10:P70))) -> 0 | Q71: =IF(P71>0,IF(S71<0.2,1,IF(AND(S71>=0.2,S71<0.541),2,IF(AND(S71>=0.541,S71<0.788),3,IF(AND(S71>=0.788,S71<0.941),4,IF(S71>=0.941,5))))),0) -> 0 | R71: =(IF(Q71=0,0,P71/Q71)*4/PI())^0.5 -> 0 | S71: 0.2268841782
G72: =J72 -> 11 | H72: 14.8 | I72: 5.8 | J72: =IF(H72=0,0,IF(H72=$C$10,1, IF(comp_entre(INDEX($S$10:$S$109,MAX(J73:J$227)),prob_ac(K73),prob_ac(K72))>0,MAX(J73:$J$227)+1,0))) -> 11 | K72: =I72-VLOOKUP(MAX(G73:G$227),G73:I$227,3,FALSE) -> 0.7 | L72: 0.7 | M72: 13.60804297 | N72: 145.4391157 | O72: 118.9691966 | P72: =IF(J72=0,0,O72-IF(J72=MAX($J$11:$J$227),SUM(P$10:P71),SUM(P$10:P71))) -> 9.913981915 | Q72: =IF(P72>0,IF(S72<0.2,1,IF(AND(S72>=0.2,S72<0.541),2,IF(AND(S72>=0.541,S72<0.788),3,IF(AND(S72>=0.788,S72<0.941),4,IF(S72>=0.941,5))))),0) -> 1 | R72: 3.552868393 | S72: 0.08439539118 | T72: =IF(Q72>=1,"\",IF(Q71>=3,"/","")) -> \ | V72: =IF(Q72>=4,"/",IF(Q71>=2,"\","")) -> 
G73: =J73 -> 0 | H73: 14.7 | I73: 5.7 | J73: =IF(H73=0,0,IF(H73=$C$10,1, IF(comp_entre(INDEX($S$10:$S$109,MAX(J74:J$227)),prob_ac(K74),prob_ac(K73))>0,MAX(J74:$J$227)+1,0))) -> 0 | K73: =I73-VLOOKUP(MAX(G74:G$227),G74:I$227,3,FALSE) -> 0.6 | L73: - | M73: 13.72144351 | N73: 147.8732047 | O73: 0 | P73: =IF(J73=0,0,O73-IF(J73=MAX($J$11:$J$227),SUM(P$10:P72),SUM(P$10:P72))) -> 0 | Q73: =IF(P73>0,IF(S73<0.2,1,IF(AND(S73>=0.2,S73<0.541),2,IF(AND(S73>=0.541,S73<0.788),3,IF(AND(S73>=0.788,S73<0.941),4,IF(S73>=0.941,5))))),0) -> 0 | R73: 0 | S73: 0.858397362 | T73: =IF(Q73>=1,"\",IF(Q72>=3,"/","")) ->  | V73: =IF(Q73>=4,"/",IF(Q72>=2,"\","")) -> 
G74: =J74 -> 0 | H74: 14.6 | I74: =IF(H75=0,0,I75+0.1) -> 5.6 | J74: =IF(H74=0,0,IF(H74=$C$10,1, IF(comp_entre(INDEX($S$10:$S$109,MAX(J75:J$227)),prob_ac(K75),prob_ac(K74))>0,MAX(J75:$J$227)+1,0))) -> 0 | K74: =I74-VLOOKUP(MAX(G75:G$227),G75:I$227,3,FALSE) -> 0.5 | L74: - | M74: =IF(H74=0,0,($C$8^2*(H74/1.3)^(2-2.0881)*($C$9-H74)/($C$9-1.3))^0.5) -> 13.83407416 | N74: 150.3107633 | O74: 0 | P74: =IF(J74=0,0,O74-IF(J74=MAX($J$11:$J$227),SUM(P$10:P73),SUM(P$10:P73))) -> 0 | Q74: =IF(P74>0,IF(S74<0.2,1,IF(AND(S74>=0.2,S74<0.541),2,IF(AND(S74>=0.541,S74<0.788),3,IF(AND(S74>=0.788,S74<0.941),4,IF(S74>=0.941,5))))),0) -> 0 | R74: 0 | S74: =RAND() -> 0.3142294069 | T74: =IF(Q74>=1,"\",IF(Q73>=3,"/","")) ->  | V74: =IF(Q74>=4,"/",IF(Q73>=2,"\","")) -> 
G75: 0 | H75: 14.5 | I75: 5.5 | J75: =IF(H75=0,0,IF(H75=$C$10,1, IF(comp_entre(INDEX($S$10:$S$109,MAX(J76:J$227)),prob_ac(K76),prob_ac(K75))>0,MAX(J76:$J$227)+1,0))) -> 0 | K75: =I75-VLOOKUP(MAX(G76:G$227),G76:I$227,3,FALSE) -> 0.4 | L75: - | M75: 13.94595545 | N75: 152.7518323 | O75: 0 | P75: =IF(J75=0,0,O75-IF(J75=MAX($J$11:$J$227),SUM(P$10:P74),SUM(P$10:P74))) -> 0 | Q75: =IF(P75>0,IF(S75<0.2,1,IF(AND(S75>=0.2,S75<0.541),2,IF(AND(S75>=0.541,S75<0.788),3,IF(AND(S75>=0.788,S75<0.941),4,IF(S75>=0.941,5))))),0) -> 0 | R75: 0 | S75: 0.7604146014 | T75: =IF(Q75>=1,"\",IF(Q74>=3,"/","")) ->  | V75: =IF(Q75>=4,"/",IF(Q74>=2,"\","")) -> 
G76: 0 | H76: =ROUND(IF(H75>$C$10,H75-0.1,0),2) -> 14.4 | I76: 5.4 | J76: =IF(H76=0,0,IF(H76=$C$10,1, IF(comp_entre(INDEX($S$10:$S$109,MAX(J77:J$227)),prob_ac(K77),prob_ac(K76))>0,MAX(J77:$J$227)+1,0))) -> 0 | K76: =I76-VLOOKUP(MAX(G77:G$227),G77:I$227,3,FALSE) -> 0.3 | L76: =IF(J76<=1,"-",ROUND(K76,1)) -> - | M76: 14.05710717 | N76: =PI()/4*M76^2 -> 155.1964536 | O76: =IF(N76=0,0,IF(J76=0,0,0.818*N76)) -> 0 | P76: =IF(J76=0,0,O76-IF(J76=MAX($J$11:$J$227),SUM(P$10:P75),SUM(P$10:P75))) -> 0 | Q76: =IF(P76>0,IF(S76<0.2,1,IF(AND(S76>=0.2,S76<0.541),2,IF(AND(S76>=0.541,S76<0.788),3,IF(AND(S76>=0.788,S76<0.941),4,IF(S76>=0.941,5))))),0) -> 0 | R76: 0 | S76: 0.04818162424 | T76: =IF(Q76>=1,"\",IF(Q75>=3,"/","")) -> 
G77: 0 | H77: 14.3 | I77: 5.3 | J77: =IF(H77=0,0,IF(H77=$C$10,1, IF(comp_entre(INDEX($S$10:$S$109,MAX(J78:J$227)),prob_ac(K78),prob_ac(K77))>0,MAX(J78:$J$227)+1,0))) -> 0 | K77: =I77-VLOOKUP(MAX(G78:G$227),G78:I$227,3,FALSE) -> 0.2 | L77: - | M77: 14.16754839 | N77: 157.6446696 | O77: 0 | P77: =IF(J77=0,0,O77-IF(J77=MAX($J$11:$J$227),SUM(P$10:P76),SUM(P$10:P76))) -> 0 | Q77: 0 | R77: =(IF(Q77=0,0,P77/Q77)*4/PI())^0.5 -> 0 | S77: 0.9770574199
G78: 0 | H78: 14.2 | I78: 5.2 | J78: =IF(H78=0,0,IF(H78=$C$10,1, IF(comp_entre(INDEX($S$10:$S$109,MAX(J79:J$227)),prob_ac(K79),prob_ac(K78))>0,MAX(J79:$J$227)+1,0))) -> 0 | K78: =I78-VLOOKUP(MAX(G79:G$227),G79:I$227,3,FALSE) -> 0.1 | L78: - | M78: 14.27729755 | N78: 160.0965239 | O78: 0 | P78: =IF(J78=0,0,O78-IF(J78=MAX($J$11:$J$227),SUM(P$10:P77),SUM(P$10:P77))) -> 0 | Q78: 0 | R78: 0 | S78: 0.1283144248
G79: 10 | H79: 14.1 | I79: 5.1 | J79: =IF(H79=0,0,IF(H79=$C$10,1, IF(comp_entre(INDEX($S$10:$S$109,MAX(J80:J$227)),prob_ac(K80),prob_ac(K79))>0,MAX(J80:$J$227)+1,0))) -> 10 | K79: =I79-VLOOKUP(MAX(G80:G$227),G80:I$227,3,FALSE) -> 0.4 | L79: 0.4 | M79: 14.38637244 | N79: 162.5520608 | O79: 132.9675857 | P79: =IF(J79=0,0,O79-IF(J79=MAX($J$11:$J$227),SUM(P$10:P78),SUM(P$10:P78))) -> 13.99838911 | Q79: 4 | R79: 2.11088267 | S79: 0.9002699468 | T79: \ | V79: /
G80: 0 | H80: 14 | I80: 5 | J80: =IF(H80=0,0,IF(H80=$C$10,1, IF(comp_entre(INDEX($S$10:$S$109,MAX(J81:J$227)),prob_ac(K81),prob_ac(K80))>0,MAX(J81:$J$227)+1,0))) -> 0 | K80: =I80-VLOOKUP(MAX(G81:G$227),G81:I$227,3,FALSE) -> 0.3 | L80: - | M80: 14.49479027 | N80: 165.0113255 | O80: 0 | P80: =IF(J80=0,0,O80-IF(J80=MAX($J$11:$J$227),SUM(P$10:P79),SUM(P$10:P79))) -> 0 | Q80: 0 | R80: 0 | S80: 0.1339512715 | T80: / | V80: \
G81: 0 | H81: 13.9 | I81: 4.9 | J81: =IF(H81=0,0,IF(H81=$C$10,1, IF(comp_entre(INDEX($S$10:$S$109,MAX(J82:J$227)),prob_ac(K82),prob_ac(K81))>0,MAX(J82:$J$227)+1,0))) -> 0 | K81: =I81-VLOOKUP(MAX(G82:G$227),G82:I$227,3,FALSE) -> 0.2 | L81: - | M81: 14.60256769 | N81: 167.4743642 | O81: 0 | P81: =IF(J81=0,0,O81-IF(J81=MAX($J$11:$J$227),SUM(P$10:P80),SUM(P$10:P80))) -> 0 | Q81: 0 | R81: 0 | S81: 0.6773529534
G82: 0 | H82: 13.8 | I82: 4.8 | J82: =IF(H82=0,0,IF(H82=$C$10,1, IF(comp_entre(INDEX($S$10:$S$109,MAX(J83:J$227)),prob_ac(K83),prob_ac(K82))>0,MAX(J83:$J$227)+1,0))) -> 0 | K82: =I82-VLOOKUP(MAX(G83:G$227),G83:I$227,3,FALSE) -> 0.1 | L82: - | M82: 14.70972082 | N82: 169.9412239 | O82: 0 | P82: =IF(J82=0,0,O82-IF(J82=MAX($J$11:$J$227),SUM(P$10:P81),SUM(P$10:P81))) -> 0 | Q82: 0 | R82: 0 | S82: 0.8835914649
G83: 9 | H83: 13.7 | I83: 4.7 | J83: =IF(H83=0,0,IF(H83=$C$10,1, IF(comp_entre(INDEX($S$10:$S$109,MAX(J84:J$227)),prob_ac(K84),prob_ac(K83))>0,MAX(J84:$J$227)+1,0))) -> 9 | K83: =I83-VLOOKUP(MAX(G84:G$227),G84:I$227,3,FALSE) -> 0.5 | L83: 0.5 | M83: 14.81626526 | N83: 172.4119529 | O83: 141.0329774 | P83: =IF(J83=0,0,O83-IF(J83=MAX($J$11:$J$227),SUM(P$10:P82),SUM(P$10:P82))) -> 8.065391703 | Q83: 3 | R83: 1.850150954 | S83: 0.5829185045 | T83: \
G84: 0 | H84: 13.6 | I84: 4.6 | J84: =IF(H84=0,0,IF(H84=$C$10,1, IF(comp_entre(INDEX($S$10:$S$109,MAX(J85:J$227)),prob_ac(K85),prob_ac(K84))>0,MAX(J85:$J$227)+1,0))) -> 0 | K84: =I84-VLOOKUP(MAX(G85:G$227),G85:I$227,3,FALSE) -> 0.4 | L84: - | M84: 14.92221616 | N84: 174.8866 | O84: 0 | P84: =IF(J84=0,0,O84-IF(J84=MAX($J$11:$J$227),SUM(P$10:P83),SUM(P$10:P83))) -> 0 | Q84: 0 | R84: 0 | S84: 0.4851179033 | T84: / | V84: \
G85: 0 | H85: 13.5 | I85: 4.5 | J85: =IF(H85=0,0,IF(H85=$C$10,1, IF(comp_entre(INDEX($S$10:$S$109,MAX(J86:J$227)),prob_ac(K86),prob_ac(K85))>0,MAX(J86:$J$227)+1,0))) -> 0 | K85: =I85-VLOOKUP(MAX(G86:G$227),G86:I$227,3,FALSE) -> 0.3 | L85: - | M85: 15.02758818 | N85: 177.3652156 | O85: 0 | P85: =IF(J85=0,0,O85-IF(J85=MAX($J$11:$J$227),SUM(P$10:P84),SUM(P$10:P84))) -> 0 | Q85: 0 | R85: 0 | S85: 0.9256030555
G86: 0 | H86: 13.4 | I86: 4.4 | J86: =IF(H86=0,0,IF(H86=$C$10,1, IF(comp_entre(INDEX($S$10:$S$109,MAX(J87:J$227)),prob_ac(K87),prob_ac(K86))>0,MAX(J87:$J$227)+1,0))) -> 0 | K86: =I86-VLOOKUP(MAX(G87:G$227),G87:I$227,3,FALSE) -> 0.2 | L86: - | M86: 15.13239557 | N86: 179.8478508 | O86: 0 | P86: =IF(J86=0,0,O86-IF(J86=MAX($J$11:$J$227),SUM(P$10:P85),SUM(P$10:P85))) -> 0 | Q86: 0 | R86: 0 | S86: 0.6072663528
G87: 0 | H87: 13.3 | I87: 4.3 | J87: =IF(H87=0,0,IF(H87=$C$10,1, IF(comp_entre(INDEX($S$10:$S$109,MAX(J88:J$227)),prob_ac(K88),prob_ac(K87))>0,MAX(J88:$J$227)+1,0))) -> 0 | K87: =I87-VLOOKUP(MAX(G88:G$227),G88:I$227,3,FALSE) -> 0.1 | L87: - | M87: 15.23665218 | N87: 182.3345579 | O87: 0 | P87: =IF(J87=0,0,O87-IF(J87=MAX($J$11:$J$227),SUM(P$10:P86),SUM(P$10:P86))) -> 0 | Q87: 0 | R87: 0 | S87: 0.8285157056
G88: 8 | H88: 13.2 | I88: 4.2 | J88: =IF(H88=0,0,IF(H88=$C$10,1, IF(comp_entre(INDEX($S$10:$S$109,MAX(J89:J$227)),prob_ac(K89),prob_ac(K88))>0,MAX(J89:$J$227)+1,0))) -> 8 | K88: =I88-VLOOKUP(MAX(G89:G$227),G89:I$227,3,FALSE) -> 0.6 | L88: 0.6 | M88: 15.34037144 | N88: 184.8253904 | O88: 151.1871693 | P88: =IF(J88=0,0,O88-IF(J88=MAX($J$11:$J$227),SUM(P$10:P87),SUM(P$10:P87))) -> 10.1541919 | Q88: 1 | R88: 3.595652747 | S88: 0.1733824221 | T88: \
G89: 0 | H89: 13.1 | I89: 4.1 | J89: =IF(H89=0,0,IF(H89=$C$10,1, IF(comp_entre(INDEX($S$10:$S$109,MAX(J90:J$227)),prob_ac(K90),prob_ac(K89))>0,MAX(J90:$J$227)+1,0))) -> 0 | K89: =I89-VLOOKUP(MAX(G90:G$227),G90:I$227,3,FALSE) -> 0.5 | L89: - | M89: 15.44356644 | N89: 187.3204028 | O89: 0 | P89: =IF(J89=0,0,O89-IF(J89=MAX($J$11:$J$227),SUM(P$10:P88),SUM(P$10:P88))) -> 0 | Q89: 0 | R89: 0 | S89: 0.3939487467
G90: 0 | H90: 13 | I90: 4 | J90: =IF(H90=0,0,IF(H90=$C$10,1, IF(comp_entre(INDEX($S$10:$S$109,MAX(J91:J$227)),prob_ac(K91),prob_ac(K90))>0,MAX(J91:$J$227)+1,0))) -> 0 | K90: =I90-VLOOKUP(MAX(G91:G$227),G91:I$227,3,FALSE) -> 0.4 | L90: - | M90: 15.5462499 | N90: 189.819651 | O90: 0 | P90: =IF(J90=0,0,O90-IF(J90=MAX($J$11:$J$227),SUM(P$10:P89),SUM(P$10:P89))) -> 0 | Q90: 0 | R90: 0 | S90: 0.4921380644
G91: 0 | H91: 12.9 | I91: 3.9 | J91: =IF(H91=0,0,IF(H91=$C$10,1, IF(comp_entre(INDEX($S$10:$S$109,MAX(J92:J$227)),prob_ac(K92),prob_ac(K91))>0,MAX(J92:$J$227)+1,0))) -> 0 | K91: =I91-VLOOKUP(MAX(G92:G$227),G92:I$227,3,FALSE) -> 0.3 | L91: - | M91: 15.64843421 | N91: 192.3231919 | O91: 0 | P91: =IF(J91=0,0,O91-IF(J91=MAX($J$11:$J$227),SUM(P$10:P90),SUM(P$10:P90))) -> 0 | Q91: 0 | R91: 0 | S91: 0.3461408638
G92: 0 | H92: 12.8 | I92: 3.8 | J92: =IF(H92=0,0,IF(H92=$C$10,1, IF(comp_entre(INDEX($S$10:$S$109,MAX(J93:J$227)),prob_ac(K93),prob_ac(K92))>0,MAX(J93:$J$227)+1,0))) -> 0 | K92: =I92-VLOOKUP(MAX(G93:G$227),G93:I$227,3,FALSE) -> 0.2 | L92: - | M92: 15.75013145 | N92: 194.831084 | O92: 0 | P92: =IF(J92=0,0,O92-IF(J92=MAX($J$11:$J$227),SUM(P$10:P91),SUM(P$10:P91))) -> 0 | Q92: 0 | R92: 0 | S92: 0.6616316091
G93: 0 | H93: 12.7 | I93: 3.7 | J93: =IF(H93=0,0,IF(H93=$C$10,1, IF(comp_entre(INDEX($S$10:$S$109,MAX(J94:J$227)),prob_ac(K94),prob_ac(K93))>0,MAX(J94:$J$227)+1,0))) -> 0 | K93: =I93-VLOOKUP(MAX(G94:G$227),G94:I$227,3,FALSE) -> 0.1 | L93: - | M93: 15.85135338 | N93: 197.3433869 | O93: 0 | P93: =IF(J93=0,0,O93-IF(J93=MAX($J$11:$J$227),SUM(P$10:P92),SUM(P$10:P92))) -> 0 | Q93: 0 | R93: 0 | S93: 0.8458229812
G94: 7 | H94: 12.6 | I94: 3.6 | J94: =IF(H94=0,0,IF(H94=$C$10,1, IF(comp_entre(INDEX($S$10:$S$109,MAX(J95:J$227)),prob_ac(K95),prob_ac(K94))>0,MAX(J95:$J$227)+1,0))) -> 7 | K94: =I94-VLOOKUP(MAX(G95:G$227),G95:I$227,3,FALSE) -> 0.5 | L94: 0.5 | M94: 15.95211149 | N94: 199.8601614 | O94: 163.4856121 | P94: =IF(J94=0,0,O94-IF(J94=MAX($J$11:$J$227),SUM(P$10:P93),SUM(P$10:P93))) -> 12.29844272 | Q94: 4 | R94: 1.978564101 | S94: 0.8076961096 | T94: \ | V94: /
G95: 0 | H95: 12.5 | I95: 3.5 | J95: =IF(H95=0,0,IF(H95=$C$10,1, IF(comp_entre(INDEX($S$10:$S$109,MAX(J96:J$227)),prob_ac(K96),prob_ac(K95))>0,MAX(J96:$J$227)+1,0))) -> 0 | K95: =I95-VLOOKUP(MAX(G96:G$227),G96:I$227,3,FALSE) -> 0.4 | L95: - | M95: 16.05241698 | N95: 202.3814702 | O95: 0 | P95: =IF(J95=0,0,O95-IF(J95=MAX($J$11:$J$227),SUM(P$10:P94),SUM(P$10:P94))) -> 0 | Q95: 0 | R95: 0 | S95: 0.0700753758 | T95: / | V95: \
G96: 0 | H96: 12.4 | I96: 3.4 | J96: =IF(H96=0,0,IF(H96=$C$10,1, IF(comp_entre(INDEX($S$10:$S$109,MAX(J97:J$227)),prob_ac(K97),prob_ac(K96))>0,MAX(J97:$J$227)+1,0))) -> 0 | K96: =I96-VLOOKUP(MAX(G97:G$227),G97:I$227,3,FALSE) -> 0.3 | L96: - | M96: 16.1522808 | N96: 204.9073768 | O96: 0 | P96: =IF(J96=0,0,O96-IF(J96=MAX($J$11:$J$227),SUM(P$10:P95),SUM(P$10:P95))) -> 0 | Q96: 0 | R96: 0 | S96: 0.9722168368
G97: 0 | H97: 12.3 | I97: 3.3 | J97: =IF(H97=0,0,IF(H97=$C$10,1, IF(comp_entre(INDEX($S$10:$S$109,MAX(J98:J$227)),prob_ac(K98),prob_ac(K97))>0,MAX(J98:$J$227)+1,0))) -> 0 | K97: =I97-VLOOKUP(MAX(G98:G$227),G98:I$227,3,FALSE) -> 0.2 | L97: - | M97: 16.25171366 | N97: 207.4379468 | O97: 0 | P97: =IF(J97=0,0,O97-IF(J97=MAX($J$11:$J$227),SUM(P$10:P96),SUM(P$10:P96))) -> 0 | Q97: 0 | R97: 0 | S97: 0.6060254793
G98: 0 | H98: 12.2 | I98: 3.2 | J98: =IF(H98=0,0,IF(H98=$C$10,1, IF(comp_entre(INDEX($S$10:$S$109,MAX(J99:J$227)),prob_ac(K99),prob_ac(K98))>0,MAX(J99:$J$227)+1,0))) -> 0 | K98: =I98-VLOOKUP(MAX(G99:G$227),G99:I$227,3,FALSE) -> 0.1 | L98: - | M98: 16.35072602 | N98: 209.9732469 | O98: 0 | P98: =IF(J98=0,0,O98-IF(J98=MAX($J$11:$J$227),SUM(P$10:P97),SUM(P$10:P97))) -> 0 | Q98: 0 | R98: 0 | S98: 0.3257459524
G99: 6 | H99: 12.1 | I99: 3.1 | J99: =IF(H99=0,0,IF(H99=$C$10,1, IF(comp_entre(INDEX($S$10:$S$109,MAX(J100:J$227)),prob_ac(K100),prob_ac(K99))>0,MAX(J100:$J$227)+1,0))) -> 6 | K99: =I99-VLOOKUP(MAX(G100:G$227),G100:I$227,3,FALSE) -> 0.7 | L99: 0.7 | M99: 16.44932811 | N99: 212.5133456 | O99: 173.8359167 | P99: =IF(J99=0,0,O99-IF(J99=MAX($J$11:$J$227),SUM(P$10:P98),SUM(P$10:P98))) -> 10.35030461 | Q99: 2 | R99: 2.566945376 | S99: 0.5330926587 | T99: \
G100: 0 | H100: 12 | I100: 3 | J100: =IF(H100=0,0,IF(H100=$C$10,1, IF(comp_entre(INDEX($S$10:$S$109,MAX(J101:J$227)),prob_ac(K101),prob_ac(K100))>0,MAX(J101:$J$227)+1,0))) -> 0 | K100: =I100-VLOOKUP(MAX(G101:G$227),G101:I$227,3,FALSE) -> 0.6 | L100: - | M100: 16.54752998 | N100: 215.0583129 | O100: 0 | P100: =IF(J100=0,0,O100-IF(J100=MAX($J$11:$J$227),SUM(P$10:P99),SUM(P$10:P99))) -> 0 | Q100: 0 | R100: 0 | S100: 0.9677082071 | V100: \
G101: 0 | H101: 11.9 | I101: 2.9 | J101: =IF(H101=0,0,IF(H101=$C$10,1, IF(comp_entre(INDEX($S$10:$S$109,MAX(J102:J$227)),prob_ac(K102),prob_ac(K101))>0,MAX(J102:$J$227)+1,0))) -> 0 | K101: =I101-VLOOKUP(MAX(G102:G$227),G102:I$227,3,FALSE) -> 0.5 | L101: - | M101: 16.64534145 | N101: 217.6082207 | O101: 0 | P101: =IF(J101=0,0,O101-IF(J101=MAX($J$11:$J$227),SUM(P$10:P100),SUM(P$10:P100))) -> 0 | Q101: 0 | R101: 0 | S101: 0.8738400842
G102: 0 | H102: 11.8 | I102: 2.8 | J102: =IF(H102=0,0,IF(H102=$C$10,1, IF(comp_entre(INDEX($S$10:$S$109,MAX(J103:J$227)),prob_ac(K103),prob_ac(K102))>0,MAX(J103:$J$227)+1,0))) -> 0 | K102: =I102-VLOOKUP(MAX(G103:G$227),G103:I$227,3,FALSE) -> 0.4 | L102: - | M102: 16.74277215 | N102: 220.1631424 | O102: 0 | P102: =IF(J102=0,0,O102-IF(J102=MAX($J$11:$J$227),SUM(P$10:P101),SUM(P$10:P101))) -> 0 | Q102: 0 | R102: 0 | S102: 0.537090214
G103: 0 | H103: 11.7 | I103: 2.7 | J103: =IF(H103=0,0,IF(H103=$C$10,1, IF(comp_entre(INDEX($S$10:$S$109,MAX(J104:J$227)),prob_ac(K104),prob_ac(K103))>0,MAX(J104:$J$227)+1,0))) -> 0 | K103: =I103-VLOOKUP(MAX(G104:G$227),G104:I$227,3,FALSE) -> 0.3 | L103: - | M103: 16.83983155 | N103: 222.7231535 | O103: 0 | P103: =IF(J103=0,0,O103-IF(J103=MAX($J$11:$J$227),SUM(P$10:P102),SUM(P$10:P102))) -> 0 | Q103: 0 | R103: 0 | S103: 0.6375465285
G104: 0 | H104: 11.6 | I104: 2.6 | J104: =IF(H104=0,0,IF(H104=$C$10,1, IF(comp_entre(INDEX($S$10:$S$109,MAX(J105:J$227)),prob_ac(K105),prob_ac(K104))>0,MAX(J105:$J$227)+1,0))) -> 0 | K104: =I104-VLOOKUP(MAX(G105:G$227),G105:I$227,3,FALSE) -> 0.2 | L104: - | M104: 16.93652892 | N104: 225.288331 | O104: 0 | P104: =IF(J104=0,0,O104-IF(J104=MAX($J$11:$J$227),SUM(P$10:P103),SUM(P$10:P103))) -> 0 | Q104: 0 | R104: 0 | S104: 0.7886725615
G105: 0 | H105: 11.5 | I105: 2.5 | J105: =IF(H105=0,0,IF(H105=$C$10,1, IF(comp_entre(INDEX($S$10:$S$109,MAX(J106:J$227)),prob_ac(K106),prob_ac(K105))>0,MAX(J106:$J$227)+1,0))) -> 0 | K105: =I105-VLOOKUP(MAX(G106:G$227),G106:I$227,3,FALSE) -> 0.1 | L105: - | M105: 17.0328734 | N105: 227.8587541 | O105: 0 | P105: =IF(J105=0,0,O105-IF(J105=MAX($J$11:$J$227),SUM(P$10:P104),SUM(P$10:P104))) -> 0 | Q105: 0 | R105: 0 | S105: 0.7304468369
G106: 5 | H106: 11.4 | I106: 2.4 | J106: =IF(H106=0,0,IF(H106=$C$10,1, IF(comp_entre(INDEX($S$10:$S$109,MAX(J107:J$227)),prob_ac(K107),prob_ac(K106))>0,MAX(J107:$J$227)+1,0))) -> 5 | K106: =I106-VLOOKUP(MAX(G107:G$227),G107:I$227,3,FALSE) -> 0.7 | L106: 0.7 | M106: 17.12887395 | N106: 230.434504 | O106: 188.4954243 | P106: =IF(J106=0,0,O106-IF(J106=MAX($J$11:$J$227),SUM(P$10:P105),SUM(P$10:P105))) -> 14.6595076 | Q106: 3 | R106: 2.494331225 | S106: 0.7254434813 | T106: \
G107: 0 | H107: 11.3 | I107: 2.3 | J107: =IF(H107=0,0,IF(H107=$C$10,1, IF(comp_entre(INDEX($S$10:$S$109,MAX(J108:J$227)),prob_ac(K108),prob_ac(K107))>0,MAX(J108:$J$227)+1,0))) -> 0 | K107: =I107-VLOOKUP(MAX(G108:G$227),G108:I$227,3,FALSE) -> 0.6 | L107: - | M107: 17.22453941 | N107: 233.0156638 | O107: 0 | P107: =IF(J107=0,0,O107-IF(J107=MAX($J$11:$J$227),SUM(P$10:P106),SUM(P$10:P106))) -> 0 | Q107: 0 | R107: 0 | S107: 0.6907707212 | T107: / | V107: \
G108: 0 | H108: 11.2 | I108: 2.2 | J108: =IF(H108=0,0,IF(H108=$C$10,1, IF(comp_entre(INDEX($S$10:$S$109,MAX(J109:J$227)),prob_ac(K109),prob_ac(K108))>0,MAX(J109:$J$227)+1,0))) -> 0 | K108: =I108-VLOOKUP(MAX(G109:G$227),G109:I$227,3,FALSE) -> 0.5 | L108: - | M108: 17.31987844 | N108: 235.602319 | O108: 0 | P108: =IF(J108=0,0,O108-IF(J108=MAX($J$11:$J$227),SUM(P$10:P107),SUM(P$10:P107))) -> 0 | Q108: 0 | R108: 0 | S108: 0.5731874636
G109: 0 | H109: 11.1 | I109: 2.1 | J109: =IF(H109=0,0,IF(H109=$C$10,1, IF(comp_entre(INDEX($S$10:$S$109,MAX(J110:J$227)),prob_ac(K110),prob_ac(K109))>0,MAX(J110:$J$227)+1,0))) -> 0 | K109: =I109-VLOOKUP(MAX(G110:G$227),G110:I$227,3,FALSE) -> 0.4 | L109: - | M109: 17.41489963 | N109: 238.1945569 | O109: 0 | P109: =IF(J109=0,0,O109-IF(J109=MAX($J$11:$J$227),SUM(P$10:P108),SUM(P$10:P108))) -> 0 | Q109: 0 | R109: 0 | S109: 0.8876537297
G110: 0 | H110: 11 | I110: 2 | J110: =IF(H110=0,0,IF(H110=$C$10,1, IF(comp_entre(INDEX($S$10:$S$109,MAX(J111:J$227)),prob_ac(K111),prob_ac(K110))>0,MAX(J111:$J$227)+1,0))) -> 0 | K110: =I110-VLOOKUP(MAX(G111:G$227),G111:I$227,3,FALSE) -> 0.3 | L110: - | M110: 17.50961141 | N110: 240.7924676 | O110: 0 | P110: =IF(J110=0,0,O110-IF(J110=MAX($J$11:$J$227),SUM(P$10:P109),SUM(P$10:P109))) -> 0 | Q110: 0 | R110: 0 | S110: 0.7723988517
G111: 0 | H111: 10.9 | I111: 1.9 | J111: =IF(H111=0,0,IF(H111=$C$10,1, IF(comp_entre(INDEX($S$10:$S$109,MAX(J112:J$227)),prob_ac(K112),prob_ac(K111))>0,MAX(J112:$J$227)+1,0))) -> 0 | K111: =I111-VLOOKUP(MAX(G112:G$227),G112:I$227,3,FALSE) -> 0.2 | L111: - | M111: 17.60402211 | N111: 243.3961432 | O111: 0 | P111: =IF(J111=0,0,O111-IF(J111=MAX($J$11:$J$227),SUM(P$10:P110),SUM(P$10:P110))) -> 0 | Q111: 0 | R111: 0 | S111: 0.5789049412
G112: 0 | H112: 10.8 | I112: 1.8 | J112: =IF(H112=0,0,IF(H112=$C$10,1, IF(comp_entre(INDEX($S$10:$S$109,MAX(J113:J$227)),prob_ac(K113),prob_ac(K112))>0,MAX(J113:$J$227)+1,0))) -> 0 | K112: =I112-VLOOKUP(MAX(G113:G$227),G113:I$227,3,FALSE) -> 0.1 | L112: - | M112: 17.69813996 | N112: 246.0056784 | O112: 0 | P112: =IF(J112=0,0,O112-IF(J112=MAX($J$11:$J$227),SUM(P$10:P111),SUM(P$10:P111))) -> 0 | Q112: 0 | R112: 0 | S112: 0.2083101905
G113: 4 | H113: 10.7 | I113: 1.7 | J113: =IF(H113=0,0,IF(H113=$C$10,1, IF(comp_entre(INDEX($S$10:$S$109,MAX(J114:J$227)),prob_ac(K114),prob_ac(K113))>0,MAX(J114:$J$227)+1,0))) -> 4 | K113: =I113-VLOOKUP(MAX(G114:G$227),G114:I$227,3,FALSE) -> 0.7 | L113: 0.7 | M113: 17.79197308 | N113: 248.6211705 | O113: 203.3721175 | P113: =IF(J113=0,0,O113-IF(J113=MAX($J$11:$J$227),SUM(P$10:P112),SUM(P$10:P112))) -> 14.87669319 | Q113: 2 | R113: 3.077466008 | S113: 0.3615941841 | T113: \
G114: 0 | H114: 10.6 | I114: 1.6 | J114: =IF(H114=0,0,IF(H114=$C$10,1, IF(comp_entre(INDEX($S$10:$S$109,MAX(J115:J$227)),prob_ac(K115),prob_ac(K114))>0,MAX(J115:$J$227)+1,0))) -> 0 | K114: =I114-VLOOKUP(MAX(G115:G$227),G115:I$227,3,FALSE) -> 0.6 | L114: - | M114: 17.8855295 | N114: 251.2427194 | O114: 0 | P114: =IF(J114=0,0,O114-IF(J114=MAX($J$11:$J$227),SUM(P$10:P113),SUM(P$10:P113))) -> 0 | Q114: 0 | R114: 0 | S114: 0.9223296636 | V114: \
G115: 0 | H115: 10.5 | I115: 1.5 | J115: =IF(H115=0,0,IF(H115=$C$10,1, IF(comp_entre(INDEX($S$10:$S$109,MAX(J116:J$227)),prob_ac(K116),prob_ac(K115))>0,MAX(J116:$J$227)+1,0))) -> 0 | K115: =I115-VLOOKUP(MAX(G116:G$227),G116:I$227,3,FALSE) -> 0.5 | L115: - | M115: 17.9788172 | N115: 253.8704277 | O115: 0 | P115: =IF(J115=0,0,O115-IF(J115=MAX($J$11:$J$227),SUM(P$10:P114),SUM(P$10:P114))) -> 0 | Q115: 0 | R115: 0 | S115: 0.9845231697
G116: 0 | H116: 10.4 | I116: 1.4 | J116: =IF(H116=0,0,IF(H116=$C$10,1, IF(comp_entre(INDEX($S$10:$S$109,MAX(J117:J$227)),prob_ac(K117),prob_ac(K116))>0,MAX(J117:$J$227)+1,0))) -> 0 | K116: =I116-VLOOKUP(MAX(G117:G$227),G117:I$227,3,FALSE) -> 0.4 | L116: - | M116: 18.07184403 | N116: 256.504401 | O116: 0 | P116: =IF(J116=0,0,O116-IF(J116=MAX($J$11:$J$227),SUM(P$10:P115),SUM(P$10:P115))) -> 0 | Q116: 0 | R116: 0 | S116: 0.9597624906
G117: 0 | H117: 10.3 | I117: 1.3 | J117: =IF(H117=0,0,IF(H117=$C$10,1, IF(comp_entre(INDEX($S$10:$S$109,MAX(J118:J$227)),prob_ac(K118),prob_ac(K117))>0,MAX(J118:$J$227)+1,0))) -> 0 | K117: =I117-VLOOKUP(MAX(G118:G$227),G118:I$227,3,FALSE) -> 0.3 | L117: - | M117: 18.16461782 | N117: 259.1447477 | O117: 0 | P117: =IF(J117=0,0,O117-IF(J117=MAX($J$11:$J$227),SUM(P$10:P116),SUM(P$10:P116))) -> 0 | Q117: 0 | R117: 0 | S117: 0.630819361
G118: 0 | H118: 10.2 | I118: 1.2 | J118: =IF(H118=0,0,IF(H118=$C$10,1, IF(comp_entre(INDEX($S$10:$S$109,MAX(J119:J$227)),prob_ac(K119),prob_ac(K118))>0,MAX(J119:$J$227)+1,0))) -> 0 | K118: =I118-VLOOKUP(MAX(G119:G$227),G119:I$227,3,FALSE) -> 0.2 | L118: - | M118: 18.25714631 | N118: 261.7915794 | O118: 0 | P118: =IF(J118=0,0,O118-IF(J118=MAX($J$11:$J$227),SUM(P$10:P117),SUM(P$10:P117))) -> 0 | Q118: 0 | R118: 0 | S118: 0.1276790434
G119: 0 | H119: 10.1 | I119: 1.1 | J119: =IF(H119=0,0,IF(H119=$C$10,1, IF(comp_entre(INDEX($S$10:$S$109,MAX(J120:J$227)),prob_ac(K120),prob_ac(K119))>0,MAX(J120:$J$227)+1,0))) -> 0 | K119: =I119-VLOOKUP(MAX(G120:G$227),G120:I$227,3,FALSE) -> 0.1 | L119: - | M119: 18.34943719 | N119: 264.4450108 | O119: 0 | P119: =IF(J119=0,0,O119-IF(J119=MAX($J$11:$J$227),SUM(P$10:P118),SUM(P$10:P118))) -> 0 | Q119: 0 | R119: 0 | S119: 0.2273542972
G120: 3 | H120: 10 | I120: 1 | J120: =IF(H120=0,0,IF(H120=$C$10,1, IF(comp_entre(INDEX($S$10:$S$109,MAX(J121:J$227)),prob_ac(K121),prob_ac(K120))>0,MAX(J121:$J$227)+1,0))) -> 3 | K120: =I120-VLOOKUP(MAX(G121:G$227),G121:I$227,3,FALSE) -> 0.4 | L120: 0.4 | M120: 18.44149811 | N120: 267.1051601 | O120: 218.4920209 | P120: =IF(J120=0,0,O120-IF(J120=MAX($J$11:$J$227),SUM(P$10:P119),SUM(P$10:P119))) -> 15.11990348 | Q120: 1 | R120: 4.38762567 | S120: 0.006649605048 | T120: \
G121: 0 | H121: 9.9 | I121: 0.9 | J121: =IF(H121=0,0,IF(H121=$C$10,1, IF(comp_entre(INDEX($S$10:$S$109,MAX(J122:J$227)),prob_ac(K122),prob_ac(K121))>0,MAX(J122:$J$227)+1,0))) -> 0 | K121: =I121-VLOOKUP(MAX(G122:G$227),G122:I$227,3,FALSE) -> 0.3 | L121: - | M121: 18.53333666 | N121: 269.7721487 | O121: 0 | P121: =IF(J121=0,0,O121-IF(J121=MAX($J$11:$J$227),SUM(P$10:P120),SUM(P$10:P120))) -> 0 | Q121: 0 | R121: 0 | S121: 0.8816729541
G122: 0 | H122: 9.8 | I122: 0.8 | J122: =IF(H122=0,0,IF(H122=$C$10,1, IF(comp_entre(INDEX($S$10:$S$109,MAX(J123:J$227)),prob_ac(K123),prob_ac(K122))>0,MAX(J123:$J$227)+1,0))) -> 0 | K122: =I122-VLOOKUP(MAX(G123:G$227),G123:I$227,3,FALSE) -> 0.2 | L122: - | M122: 18.62496042 | N122: 272.4461018 | O122: 0 | P122: =IF(J122=0,0,O122-IF(J122=MAX($J$11:$J$227),SUM(P$10:P121),SUM(P$10:P121))) -> 0 | Q122: 0 | R122: 0 | S122: 0.8931769744
G123: 0 | H123: 9.7 | I123: 0.7 | J123: =IF(H123=0,0,IF(H123=$C$10,1, IF(comp_entre(INDEX($S$10:$S$109,MAX(J124:J$227)),prob_ac(K124),prob_ac(K123))>0,MAX(J124:$J$227)+1,0))) -> 0 | K123: =I123-VLOOKUP(MAX(G124:G$227),G124:I$227,3,FALSE) -> 0.1 | L123: - | M123: 18.71637692 | N123: 275.1271482 | O123: 0 | P123: =IF(J123=0,0,O123-IF(J123=MAX($J$11:$J$227),SUM(P$10:P122),SUM(P$10:P122))) -> 0 | Q123: 0 | R123: 0 | S123: 0.4558729379
G124: 2 | H124: 9.6 | I124: 0.6 | J124: =IF(H124=0,0,IF(H124=$C$10,1, IF(comp_entre(INDEX($S$10:$S$109,MAX(J125:J$227)),prob_ac(K125),prob_ac(K124))>0,MAX(J125:$J$227)+1,0))) -> 2 | K124: =I124-VLOOKUP(MAX(G125:G$227),G125:I$227,3,FALSE) -> 0.6 | L124: 0.6 | M124: 18.80759368 | N124: 277.8154208 | O124: 227.2530142 | P124: =IF(J124=0,0,O124-IF(J124=MAX($J$11:$J$227),SUM(P$10:P123),SUM(P$10:P123))) -> 8.760993254 | Q124: 2 | R124: 2.361656523 | S124: 0.2277195528 | T124: \
G125: 0 | H125: 9.5 | I125: 0.5 | J125: =IF(H125=0,0,IF(H125=$C$10,1, IF(comp_entre(INDEX($S$10:$S$109,MAX(J126:J$227)),prob_ac(K126),prob_ac(K125))>0,MAX(J126:$J$227)+1,0))) -> 0 | K125: =I125-VLOOKUP(MAX(G126:G$227),G126:I$227,3,FALSE) -> 0.5 | L125: - | M125: 18.89861819 | N125: 280.5110563 | O125: 0 | P125: =IF(J125=0,0,O125-IF(J125=MAX($J$11:$J$227),SUM(P$10:P124),SUM(P$10:P124))) -> 0 | Q125: 0 | R125: 0 | S125: 0.1526018113 | V125: \
G126: 0 | H126: 9.4 | I126: 0.4 | J126: =IF(H126=0,0,IF(H126=$C$10,1, IF(comp_entre(INDEX($S$10:$S$109,MAX(J127:J$227)),prob_ac(K127),prob_ac(K126))>0,MAX(J127:$J$227)+1,0))) -> 0 | K126: =I126-VLOOKUP(MAX(G127:G$227),G127:I$227,3,FALSE) -> 0.4 | L126: - | M126: 18.98945796 | N126: 283.2141959 | O126: 0 | P126: =IF(J126=0,0,O126-IF(J126=MAX($J$11:$J$227),SUM(P$10:P125),SUM(P$10:P125))) -> 0 | Q126: 0 | R126: 0 | S126: 0.8412764854
G127: 0 | H127: 9.3 | I127: 0.3 | J127: =IF(H127=0,0,IF(H127=$C$10,1, IF(comp_entre(INDEX($S$10:$S$109,MAX(J128:J$227)),prob_ac(K128),prob_ac(K127))>0,MAX(J128:$J$227)+1,0))) -> 0 | K127: =I127-VLOOKUP(MAX(G128:G$227),G128:I$227,3,FALSE) -> 0.3 | L127: - | M127: 19.08012048 | N127: 285.9249849 | O127: 0 | P127: =IF(J127=0,0,O127-IF(J127=MAX($J$11:$J$227),SUM(P$10:P126),SUM(P$10:P126))) -> 0 | Q127: 0 | R127: 0 | S127: 0.3349400738
G128: 0 | H128: 9.2 | I128: 0.2 | J128: =IF(H128=0,0,IF(H128=$C$10,1, IF(comp_entre(INDEX($S$10:$S$109,MAX(J129:J$227)),prob_ac(K129),prob_ac(K128))>0,MAX(J129:$J$227)+1,0))) -> 0 | K128: =I128-VLOOKUP(MAX(G129:G$227),G129:I$227,3,FALSE) -> 0.2 | L128: - | M128: 19.17061324 | N128: 288.6435735 | O128: 0 | P128: =IF(J128=0,0,O128-IF(J128=MAX($J$11:$J$227),SUM(P$10:P127),SUM(P$10:P127))) -> 0 | Q128: 0 | R128: 0 | S128: 0.2886136369
G129: 0 | H129: 9.1 | I129: 0.1 | J129: =IF(H129=0,0,IF(H129=$C$10,1, IF(comp_entre(INDEX($S$10:$S$109,MAX(J130:J$227)),prob_ac(K130),prob_ac(K129))>0,MAX(J130:$J$227)+1,0))) -> 0 | K129: =I129-VLOOKUP(MAX(G130:G$227),G130:I$227,3,FALSE) -> 0.1 | L129: - | M129: 19.26094376 | N129: 291.3701165 | O129: 0 | P129: =IF(J129=0,0,O129-IF(J129=MAX($J$11:$J$227),SUM(P$10:P128),SUM(P$10:P128))) -> 0 | Q129: 0 | R129: 0 | S129: 0.4575697732
G130: 1 | H130: 9 | I130: 0 | J130: =IF(H130=0,0,IF(H130=$C$10,1, IF(comp_entre(INDEX($S$10:$S$109,MAX(J131:J$227)),prob_ac(K131),prob_ac(K130))>0,MAX(J131:$J$227)+1,0))) -> 1 | K130: =I130-VLOOKUP(MAX(G131:G$227),G131:I$227,3,FALSE) -> 0 | L130: - | M130: 19.35111956 | N130: 294.1047738 | O130: 240.5777049 | P130: =IF(J130=0,0,O130-IF(J130=MAX($J$11:$J$227),SUM(P$10:P129),SUM(P$10:P129))) -> 13.32469075 | Q130: 2 | R130: 2.912518085 | S130: 0.2186842667 | T130: \
G131: 0 | H131: 0 | I131: 0 | J131: =IF(H131=0,0,IF(H131=$C$10,1, IF(comp_entre(INDEX($S$10:$S$109,MAX(J132:J$227)),prob_ac(K132),prob_ac(K131))>0,MAX(J132:$J$227)+1,0))) -> 0 | K131: =I131-VLOOKUP(MAX(G132:G$227),G132:I$227,3,FALSE) -> 0 | L131: - | M131: 0 | N131: 0 | O131: 0 | P131: =IF(J131=0,0,O131-IF(J131=MAX($J$11:$J$227),SUM(P$10:P130),SUM(P$10:P130))) -> 0 | Q131: 0 | R131: 0 | S131: 0.1462145247 | V131: \
G132: 0 | H132: 0 | I132: 0 | J132: =IF(H132=0,0,IF(H132=$C$10,1, IF(comp_entre(INDEX($S$10:$S$109,MAX(J133:J$227)),prob_ac(K133),prob_ac(K132))>0,MAX(J133:$J$227)+1,0))) -> 0 | K132: =I132-VLOOKUP(MAX(G133:G$227),G133:I$227,3,FALSE) -> 0 | L132: - | M132: 0 | N132: 0 | O132: 0 | P132: =IF(J132=0,0,O132-IF(J132=MAX($J$11:$J$227),SUM(P$10:P131),SUM(P$10:P131))) -> 0 | Q132: 0 | R132: 0 | S132: 0.7389659476
G133: 0 | H133: 0 | I133: 0 | J133: =IF(H133=0,0,IF(H133=$C$10,1, IF(comp_entre(INDEX($S$10:$S$109,MAX(J134:J$227)),prob_ac(K134),prob_ac(K133))>0,MAX(J134:$J$227)+1,0))) -> 0 | K133: =I133-VLOOKUP(MAX(G134:G$227),G134:I$227,3,FALSE) -> 0 | L133: - | M133: 0 | N133: 0 | O133: 0 | P133: =IF(J133=0,0,O133-IF(J133=MAX($J$11:$J$227),SUM(P$10:P132),SUM(P$10:P132))) -> 0 | Q133: 0 | R133: 0 | S133: 0.3826801018
G134: 0 | H134: 0 | I134: 0 | J134: =IF(H134=0,0,IF(H134=$C$10,1, IF(comp_entre(INDEX($S$10:$S$109,MAX(J135:J$227)),prob_ac(K135),prob_ac(K134))>0,MAX(J135:$J$227)+1,0))) -> 0 | K134: =I134-VLOOKUP(MAX(G135:G$227),G135:I$227,3,FALSE) -> 0 | L134: - | M134: 0 | N134: 0 | O134: 0 | P134: =IF(J134=0,0,O134-IF(J134=MAX($J$11:$J$227),SUM(P$10:P133),SUM(P$10:P133))) -> 0 | Q134: 0 | R134: 0 | S134: 0.1879791697
G135: 0 | H135: 0 | I135: 0 | J135: =IF(H135=0,0,IF(H135=$C$10,1, IF(comp_entre(INDEX($S$10:$S$109,MAX(J136:J$227)),prob_ac(K136),prob_ac(K135))>0,MAX(J136:$J$227)+1,0))) -> 0 | K135: =I135-VLOOKUP(MAX(G136:G$227),G136:I$227,3,FALSE) -> 0 | L135: - | M135: 0 | N135: 0 | O135: 0 | P135: =IF(J135=0,0,O135-IF(J135=MAX($J$11:$J$227),SUM(P$10:P134),SUM(P$10:P134))) -> 0 | Q135: 0 | R135: 0 | S135: 0.1686315209
G136: 0 | H136: 0 | I136: 0 | J136: =IF(H136=0,0,IF(H136=$C$10,1, IF(comp_entre(INDEX($S$10:$S$109,MAX(J137:J$227)),prob_ac(K137),prob_ac(K136))>0,MAX(J137:$J$227)+1,0))) -> 0 | K136: =I136-VLOOKUP(MAX(G137:G$227),G137:I$227,3,FALSE) -> 0 | L136: - | M136: 0 | N136: 0 | O136: 0 | P136: =IF(J136=0,0,O136-IF(J136=MAX($J$11:$J$227),SUM(P$10:P135),SUM(P$10:P135))) -> 0 | Q136: 0 | R136: 0 | S136: 0.3521768821
G137: 0 | H137: 0 | I137: 0 | J137: =IF(H137=0,0,IF(H137=$C$10,1, IF(comp_entre(INDEX($S$10:$S$109,MAX(J138:J$227)),prob_ac(K138),prob_ac(K137))>0,MAX(J138:$J$227)+1,0))) -> 0 | K137: =I137-VLOOKUP(MAX(G138:G$227),G138:I$227,3,FALSE) -> 0 | L137: - | M137: 0 | N137: 0 | O137: 0 | P137: =IF(J137=0,0,O137-IF(J137=MAX($J$11:$J$227),SUM(P$10:P136),SUM(P$10:P136))) -> 0 | Q137: 0 | R137: 0 | S137: 0.9857877675
G138: =J138 -> 0 | H138: 0 | I138: =IF(H139=0,0,I139+0.1) -> 0 | J138: =IF(H138=0,0,IF(H138=$C$10,1, IF(comp_entre(INDEX($S$10:$S$109,MAX(J139:J$227)),prob_ac(K139),prob_ac(K138))>0,MAX(J139:$J$227)+1,0))) -> 0 | K138: =I138-VLOOKUP(MAX(G139:G$227),G139:I$227,3,FALSE) -> 0 | L138: - | M138: =IF(H138=0,0,($C$8^2*(H138/1.3)^(2-2.0881)*($C$9-H138)/($C$9-1.3))^0.5) -> 0 | N138: 0 | O138: 0 | P138: =IF(J138=0,0,O138-IF(J138=MAX($J$11:$J$227),SUM(P$10:P137),SUM(P$10:P137))) -> 0 | Q138: 0 | R138: 0 | S138: =RAND() -> 0.5623089202
G139: 0 | H139: 0 | I139: 0 | J139: =IF(H139=0,0,IF(H139=$C$10,1, IF(comp_entre(INDEX($S$10:$S$109,MAX(J140:J$227)),prob_ac(K140),prob_ac(K139))>0,MAX(J140:$J$227)+1,0))) -> 0 | K139: =I139-VLOOKUP(MAX(G140:G$227),G140:I$227,3,FALSE) -> 0 | L139: - | M139: 0 | N139: 0 | O139: 0 | P139: =IF(J139=0,0,O139-IF(J139=MAX($J$11:$J$227),SUM(P$10:P138),SUM(P$10:P138))) -> 0 | Q139: 0 | R139: 0 | S139: 0.4754582885 | V139: =IF(Q139>=4,"/",IF(Q138>=2,"\","")) -> 
G140: 0 | H140: =ROUND(IF(H139>$C$10,H139-0.1,0),2) -> 0 | I140: 0 | J140: =IF(H140=0,0,IF(H140=$C$10,1, IF(comp_entre(INDEX($S$10:$S$109,MAX(J141:J$227)),prob_ac(K141),prob_ac(K140))>0,MAX(J141:$J$227)+1,0))) -> 0 | K140: =I140-VLOOKUP(MAX(G141:G$227),G141:I$227,3,FALSE) -> 0 | L140: =IF(J140<=1,"-",ROUND(K140,1)) -> - | M140: 0 | N140: =PI()/4*M140^2 -> 0 | O140: =IF(N140=0,0,IF(J140=0,0,0.818*N140)) -> 0 | P140: =IF(J140=0,0,O140-IF(J140=MAX($J$11:$J$227),SUM(P$10:P139),SUM(P$10:P139))) -> 0 | Q140: =IF(P140>0,IF(S140<0.2,1,IF(AND(S140>=0.2,S140<0.541),2,IF(AND(S140>=0.541,S140<0.788),3,IF(AND(S140>=0.788,S140<0.941),4,IF(S140>=0.941,5))))),0) -> 0 | R140: 0 | S140: 0.544658267 | T140: =IF(Q140>=1,"\",IF(Q139>=3,"/","")) -> 
G141: 0 | H141: 0 | I141: 0 | J141: =IF(H141=0,0,IF(H141=$C$10,1, IF(comp_entre(INDEX($S$10:$S$109,MAX(J142:J$227)),prob_ac(K142),prob_ac(K141))>0,MAX(J142:$J$227)+1,0))) -> 0 | K141: =I141-VLOOKUP(MAX(G142:G$227),G142:I$227,3,FALSE) -> 0 | L141: - | M141: 0 | N141: 0 | O141: 0 | P141: =IF(J141=0,0,O141-IF(J141=MAX($J$11:$J$227),SUM(P$10:P140),SUM(P$10:P140))) -> 0 | Q141: 0 | R141: =(IF(Q141=0,0,P141/Q141)*4/PI())^0.5 -> 0 | S141: 0.990941252
G142: 0 | H142: 0 | I142: 0 | J142: =IF(H142=0,0,IF(H142=$C$10,1, IF(comp_entre(INDEX($S$10:$S$109,MAX(J143:J$227)),prob_ac(K143),prob_ac(K142))>0,MAX(J143:$J$227)+1,0))) -> 0 | K142: =I142-VLOOKUP(MAX(G143:G$227),G143:I$227,3,FALSE) -> 0 | L142: - | M142: 0 | N142: 0 | O142: 0 | P142: =IF(J142=0,0,O142-IF(J142=MAX($J$11:$J$227),SUM(P$10:P141),SUM(P$10:P141))) -> 0 | Q142: 0 | R142: 0 | S142: 0.003373872235
G143: 0 | H143: 0 | I143: 0 | J143: =IF(H143=0,0,IF(H143=$C$10,1, IF(comp_entre(INDEX($S$10:$S$109,MAX(J144:J$227)),prob_ac(K144),prob_ac(K143))>0,MAX(J144:$J$227)+1,0))) -> 0 | K143: =I143-VLOOKUP(MAX(G144:G$227),G144:I$227,3,FALSE) -> 0 | L143: - | M143: 0 | N143: 0 | O143: 0 | P143: =IF(J143=0,0,O143-IF(J143=MAX($J$11:$J$227),SUM(P$10:P142),SUM(P$10:P142))) -> 0 | Q143: 0 | R143: 0 | S143: 0.1165384628
G144: 0 | H144: 0 | I144: 0 | J144: =IF(H144=0,0,IF(H144=$C$10,1, IF(comp_entre(INDEX($S$10:$S$109,MAX(J145:J$227)),prob_ac(K145),prob_ac(K144))>0,MAX(J145:$J$227)+1,0))) -> 0 | K144: =I144-VLOOKUP(MAX(G145:G$227),G145:I$227,3,FALSE) -> 0 | L144: - | M144: 0 | N144: 0 | O144: 0 | P144: =IF(J144=0,0,O144-IF(J144=MAX($J$11:$J$227),SUM(P$10:P143),SUM(P$10:P143))) -> 0 | Q144: 0 | R144: 0 | S144: 0.7901287835
G145: 0 | H145: 0 | I145: 0 | J145: =IF(H145=0,0,IF(H145=$C$10,1, IF(comp_entre(INDEX($S$10:$S$109,MAX(J146:J$227)),prob_ac(K146),prob_ac(K145))>0,MAX(J146:$J$227)+1,0))) -> 0 | K145: =I145-VLOOKUP(MAX(G146:G$227),G146:I$227,3,FALSE) -> 0 | L145: - | M145: 0 | N145: 0 | O145: 0 | P145: =IF(J145=0,0,O145-IF(J145=MAX($J$11:$J$227),SUM(P$10:P144),SUM(P$10:P144))) -> 0 | Q145: 0 | R145: 0 | S145: 0.8463352875
G146: 0 | H146: 0 | I146: 0 | J146: =IF(H146=0,0,IF(H146=$C$10,1, IF(comp_entre(INDEX($S$10:$S$109,MAX(J147:J$227)),prob_ac(K147),prob_ac(K146))>0,MAX(J147:$J$227)+1,0))) -> 0 | K146: =I146-VLOOKUP(MAX(G147:G$227),G147:I$227,3,FALSE) -> 0 | L146: - | M146: 0 | N146: 0 | O146: 0 | P146: =IF(J146=0,0,O146-IF(J146=MAX($J$11:$J$227),SUM(P$10:P145),SUM(P$10:P145))) -> 0 | Q146: 0 | R146: 0 | S146: 0.05752020299
G147: 0 | H147: 0 | I147: 0 | J147: =IF(H147=0,0,IF(H147=$C$10,1, IF(comp_entre(INDEX($S$10:$S$109,MAX(J148:J$227)),prob_ac(K148),prob_ac(K147))>0,MAX(J148:$J$227)+1,0))) -> 0 | K147: =I147-VLOOKUP(MAX(G148:G$227),G148:I$227,3,FALSE) -> 0 | L147: - | M147: 0 | N147: 0 | O147: 0 | P147: =IF(J147=0,0,O147-IF(J147=MAX($J$11:$J$227),SUM(P$10:P146),SUM(P$10:P146))) -> 0 | Q147: 0 | R147: 0 | S147: 0.422637104
G148: 0 | H148: 0 | I148: 0 | J148: =IF(H148=0,0,IF(H148=$C$10,1, IF(comp_entre(INDEX($S$10:$S$109,MAX(J149:J$227)),prob_ac(K149),prob_ac(K148))>0,MAX(J149:$J$227)+1,0))) -> 0 | K148: =I148-VLOOKUP(MAX(G149:G$227),G149:I$227,3,FALSE) -> 0 | L148: - | M148: 0 | N148: 0 | O148: 0 | P148: =IF(J148=0,0,O148-IF(J148=MAX($J$11:$J$227),SUM(P$10:P147),SUM(P$10:P147))) -> 0 | Q148: 0 | R148: 0 | S148: 0.1779491874
G149: 0 | H149: 0 | I149: 0 | J149: =IF(H149=0,0,IF(H149=$C$10,1, IF(comp_entre(INDEX($S$10:$S$109,MAX(J150:J$227)),prob_ac(K150),prob_ac(K149))>0,MAX(J150:$J$227)+1,0))) -> 0 | K149: =I149-VLOOKUP(MAX(G150:G$227),G150:I$227,3,FALSE) -> 0 | L149: - | M149: 0 | N149: 0 | O149: 0 | P149: =IF(J149=0,0,O149-IF(J149=MAX($J$11:$J$227),SUM(P$10:P148),SUM(P$10:P148))) -> 0 | Q149: 0 | R149: 0 | S149: 0.3781306756
G150: 0 | H150: 0 | I150: 0 | J150: =IF(H150=0,0,IF(H150=$C$10,1, IF(comp_entre(INDEX($S$10:$S$109,MAX(J151:J$227)),prob_ac(K151),prob_ac(K150))>0,MAX(J151:$J$227)+1,0))) -> 0 | K150: =I150-VLOOKUP(MAX(G151:G$227),G151:I$227,3,FALSE) -> 0 | L150: - | M150: 0 | N150: 0 | O150: 0 | P150: =IF(J150=0,0,O150-IF(J150=MAX($J$11:$J$227),SUM(P$10:P149),SUM(P$10:P149))) -> 0 | Q150: 0 | R150: 0 | S150: 0.457588937
G151: 0 | H151: 0 | I151: 0 | J151: =IF(H151=0,0,IF(H151=$C$10,1, IF(comp_entre(INDEX($S$10:$S$109,MAX(J152:J$227)),prob_ac(K152),prob_ac(K151))>0,MAX(J152:$J$227)+1,0))) -> 0 | K151: =I151-VLOOKUP(MAX(G152:G$227),G152:I$227,3,FALSE) -> 0 | L151: - | M151: 0 | N151: 0 | O151: 0 | P151: =IF(J151=0,0,O151-IF(J151=MAX($J$11:$J$227),SUM(P$10:P150),SUM(P$10:P150))) -> 0 | Q151: 0 | R151: 0 | S151: 0.2049165563
G152: 0 | H152: 0 | I152: 0 | J152: =IF(H152=0,0,IF(H152=$C$10,1, IF(comp_entre(INDEX($S$10:$S$109,MAX(J153:J$227)),prob_ac(K153),prob_ac(K152))>0,MAX(J153:$J$227)+1,0))) -> 0 | K152: =I152-VLOOKUP(MAX(G153:G$227),G153:I$227,3,FALSE) -> 0 | L152: - | M152: 0 | N152: 0 | O152: 0 | P152: =IF(J152=0,0,O152-IF(J152=MAX($J$11:$J$227),SUM(P$10:P151),SUM(P$10:P151))) -> 0 | Q152: 0 | R152: 0 | S152: 0.6114247159
G153: 0 | H153: 0 | I153: 0 | J153: =IF(H153=0,0,IF(H153=$C$10,1, IF(comp_entre(INDEX($S$10:$S$109,MAX(J154:J$227)),prob_ac(K154),prob_ac(K153))>0,MAX(J154:$J$227)+1,0))) -> 0 | K153: =I153-VLOOKUP(MAX(G154:G$227),G154:I$227,3,FALSE) -> 0 | L153: - | M153: 0 | N153: 0 | O153: 0 | P153: =IF(J153=0,0,O153-IF(J153=MAX($J$11:$J$227),SUM(P$10:P152),SUM(P$10:P152))) -> 0 | Q153: 0 | R153: 0 | S153: 0.1399689828
G154: 0 | H154: 0 | I154: 0 | J154: =IF(H154=0,0,IF(H154=$C$10,1, IF(comp_entre(INDEX($S$10:$S$109,MAX(J155:J$227)),prob_ac(K155),prob_ac(K154))>0,MAX(J155:$J$227)+1,0))) -> 0 | K154: =I154-VLOOKUP(MAX(G155:G$227),G155:I$227,3,FALSE) -> 0 | L154: - | M154: 0 | N154: 0 | O154: 0 | P154: =IF(J154=0,0,O154-IF(J154=MAX($J$11:$J$227),SUM(P$10:P153),SUM(P$10:P153))) -> 0 | Q154: 0 | R154: 0 | S154: 0.1273372264
G155: 0 | H155: 0 | I155: 0 | J155: =IF(H155=0,0,IF(H155=$C$10,1, IF(comp_entre(INDEX($S$10:$S$109,MAX(J156:J$227)),prob_ac(K156),prob_ac(K155))>0,MAX(J156:$J$227)+1,0))) -> 0 | K155: =I155-VLOOKUP(MAX(G156:G$227),G156:I$227,3,FALSE) -> 0 | L155: - | M155: 0 | N155: 0 | O155: 0 | P155: =IF(J155=0,0,O155-IF(J155=MAX($J$11:$J$227),SUM(P$10:P154),SUM(P$10:P154))) -> 0 | Q155: 0 | R155: 0 | S155: 0.9129119143
G156: 0 | H156: 0 | I156: 0 | J156: =IF(H156=0,0,IF(H156=$C$10,1, IF(comp_entre(INDEX($S$10:$S$109,MAX(J157:J$227)),prob_ac(K157),prob_ac(K156))>0,MAX(J157:$J$227)+1,0))) -> 0 | K156: =I156-VLOOKUP(MAX(G157:G$227),G157:I$227,3,FALSE) -> 0 | L156: - | M156: 0 | N156: 0 | O156: 0 | P156: =IF(J156=0,0,O156-IF(J156=MAX($J$11:$J$227),SUM(P$10:P155),SUM(P$10:P155))) -> 0 | Q156: 0 | R156: 0 | S156: 0.7428979736
G157: 0 | H157: 0 | I157: 0 | J157: =IF(H157=0,0,IF(H157=$C$10,1, IF(comp_entre(INDEX($S$10:$S$109,MAX(J158:J$227)),prob_ac(K158),prob_ac(K157))>0,MAX(J158:$J$227)+1,0))) -> 0 | K157: =I157-VLOOKUP(MAX(G158:G$227),G158:I$227,3,FALSE) -> 0 | L157: - | M157: 0 | N157: 0 | O157: 0 | P157: =IF(J157=0,0,O157-IF(J157=MAX($J$11:$J$227),SUM(P$10:P156),SUM(P$10:P156))) -> 0 | Q157: 0 | R157: 0 | S157: 0.8356970906
G158: 0 | H158: 0 | I158: 0 | J158: =IF(H158=0,0,IF(H158=$C$10,1, IF(comp_entre(INDEX($S$10:$S$109,MAX(J159:J$227)),prob_ac(K159),prob_ac(K158))>0,MAX(J159:$J$227)+1,0))) -> 0 | K158: =I158-VLOOKUP(MAX(G159:G$227),G159:I$227,3,FALSE) -> 0 | L158: - | M158: 0 | N158: 0 | O158: 0 | P158: =IF(J158=0,0,O158-IF(J158=MAX($J$11:$J$227),SUM(P$10:P157),SUM(P$10:P157))) -> 0 | Q158: 0 | R158: 0 | S158: 0.6304066573
G159: 0 | H159: 0 | I159: 0 | J159: =IF(H159=0,0,IF(H159=$C$10,1, IF(comp_entre(INDEX($S$10:$S$109,MAX(J160:J$227)),prob_ac(K160),prob_ac(K159))>0,MAX(J160:$J$227)+1,0))) -> 0 | K159: =I159-VLOOKUP(MAX(G160:G$227),G160:I$227,3,FALSE) -> 0 | L159: - | M159: 0 | N159: 0 | O159: 0 | P159: =IF(J159=0,0,O159-IF(J159=MAX($J$11:$J$227),SUM(P$10:P158),SUM(P$10:P158))) -> 0 | Q159: 0 | R159: 0 | S159: 0.7318704784
G160: 0 | H160: 0 | I160: 0 | J160: =IF(H160=0,0,IF(H160=$C$10,1, IF(comp_entre(INDEX($S$10:$S$109,MAX(J161:J$227)),prob_ac(K161),prob_ac(K160))>0,MAX(J161:$J$227)+1,0))) -> 0 | K160: =I160-VLOOKUP(MAX(G161:G$227),G161:I$227,3,FALSE) -> 0 | L160: - | M160: 0 | N160: 0 | O160: 0 | P160: =IF(J160=0,0,O160-IF(J160=MAX($J$11:$J$227),SUM(P$10:P159),SUM(P$10:P159))) -> 0 | Q160: 0 | R160: 0 | S160: 0.9505384489
G161: 0 | H161: 0 | I161: 0 | J161: =IF(H161=0,0,IF(H161=$C$10,1, IF(comp_entre(INDEX($S$10:$S$109,MAX(J162:J$227)),prob_ac(K162),prob_ac(K161))>0,MAX(J162:$J$227)+1,0))) -> 0 | K161: =I161-VLOOKUP(MAX(G162:G$227),G162:I$227,3,FALSE) -> 0 | L161: - | M161: 0 | N161: 0 | O161: 0 | P161: =IF(J161=0,0,O161-IF(J161=MAX($J$11:$J$227),SUM(P$10:P160),SUM(P$10:P160))) -> 0 | Q161: 0 | R161: 0 | S161: 0.2006561089
G162: 0 | H162: 0 | I162: 0 | J162: =IF(H162=0,0,IF(H162=$C$10,1, IF(comp_entre(INDEX($S$10:$S$109,MAX(J163:J$227)),prob_ac(K163),prob_ac(K162))>0,MAX(J163:$J$227)+1,0))) -> 0 | K162: =I162-VLOOKUP(MAX(G163:G$227),G163:I$227,3,FALSE) -> 0 | L162: - | M162: 0 | N162: 0 | O162: 0 | P162: =IF(J162=0,0,O162-IF(J162=MAX($J$11:$J$227),SUM(P$10:P161),SUM(P$10:P161))) -> 0 | Q162: 0 | R162: 0 | S162: 0.2460937136
G163: 0 | H163: 0 | I163: 0 | J163: =IF(H163=0,0,IF(H163=$C$10,1, IF(comp_entre(INDEX($S$10:$S$109,MAX(J164:J$227)),prob_ac(K164),prob_ac(K163))>0,MAX(J164:$J$227)+1,0))) -> 0 | K163: =I163-VLOOKUP(MAX(G164:G$227),G164:I$227,3,FALSE) -> 0 | L163: - | M163: 0 | N163: 0 | O163: 0 | P163: =IF(J163=0,0,O163-IF(J163=MAX($J$11:$J$227),SUM(P$10:P162),SUM(P$10:P162))) -> 0 | Q163: 0 | R163: 0 | S163: 0.4512063793
G164: 0 | H164: 0 | I164: 0 | J164: =IF(H164=0,0,IF(H164=$C$10,1, IF(comp_entre(INDEX($S$10:$S$109,MAX(J165:J$227)),prob_ac(K165),prob_ac(K164))>0,MAX(J165:$J$227)+1,0))) -> 0 | K164: =I164-VLOOKUP(MAX(G165:G$227),G165:I$227,3,FALSE) -> 0 | L164: - | M164: 0 | N164: 0 | O164: 0 | P164: =IF(J164=0,0,O164-IF(J164=MAX($J$11:$J$227),SUM(P$10:P163),SUM(P$10:P163))) -> 0 | Q164: 0 | R164: 0 | S164: 0.7046210566
G165: 0 | H165: 0 | I165: 0 | J165: =IF(H165=0,0,IF(H165=$C$10,1, IF(comp_entre(INDEX($S$10:$S$109,MAX(J166:J$227)),prob_ac(K166),prob_ac(K165))>0,MAX(J166:$J$227)+1,0))) -> 0 | K165: =I165-VLOOKUP(MAX(G166:G$227),G166:I$227,3,FALSE) -> 0 | L165: - | M165: 0 | N165: 0 | O165: 0 | P165: =IF(J165=0,0,O165-IF(J165=MAX($J$11:$J$227),SUM(P$10:P164),SUM(P$10:P164))) -> 0 | Q165: 0 | R165: 0 | S165: 0.5632362676
G166: 0 | H166: 0 | I166: 0 | J166: =IF(H166=0,0,IF(H166=$C$10,1, IF(comp_entre(INDEX($S$10:$S$109,MAX(J167:J$227)),prob_ac(K167),prob_ac(K166))>0,MAX(J167:$J$227)+1,0))) -> 0 | K166: =I166-VLOOKUP(MAX(G167:G$227),G167:I$227,3,FALSE) -> 0 | L166: - | M166: 0 | N166: 0 | O166: 0 | P166: =IF(J166=0,0,O166-IF(J166=MAX($J$11:$J$227),SUM(P$10:P165),SUM(P$10:P165))) -> 0 | Q166: 0 | R166: 0 | S166: 0.5240868524
G167: 0 | H167: 0 | I167: 0 | J167: =IF(H167=0,0,IF(H167=$C$10,1, IF(comp_entre(INDEX($S$10:$S$109,MAX(J168:J$227)),prob_ac(K168),prob_ac(K167))>0,MAX(J168:$J$227)+1,0))) -> 0 | K167: =I167-VLOOKUP(MAX(G168:G$227),G168:I$227,3,FALSE) -> 0 | L167: - | M167: 0 | N167: 0 | O167: 0 | P167: =IF(J167=0,0,O167-IF(J167=MAX($J$11:$J$227),SUM(P$10:P166),SUM(P$10:P166))) -> 0 | Q167: 0 | R167: 0 | S167: 0.7182280949
G168: 0 | H168: 0 | I168: 0 | J168: =IF(H168=0,0,IF(H168=$C$10,1, IF(comp_entre(INDEX($S$10:$S$109,MAX(J169:J$227)),prob_ac(K169),prob_ac(K168))>0,MAX(J169:$J$227)+1,0))) -> 0 | K168: =I168-VLOOKUP(MAX(G169:G$227),G169:I$227,3,FALSE) -> 0 | L168: - | M168: 0 | N168: 0 | O168: 0 | P168: =IF(J168=0,0,O168-IF(J168=MAX($J$11:$J$227),SUM(P$10:P167),SUM(P$10:P167))) -> 0 | Q168: 0 | R168: 0 | S168: 0.8214553353
G169: 0 | H169: 0 | I169: 0 | J169: =IF(H169=0,0,IF(H169=$C$10,1, IF(comp_entre(INDEX($S$10:$S$109,MAX(J170:J$227)),prob_ac(K170),prob_ac(K169))>0,MAX(J170:$J$227)+1,0))) -> 0 | K169: =I169-VLOOKUP(MAX(G170:G$227),G170:I$227,3,FALSE) -> 0 | L169: - | M169: 0 | N169: 0 | O169: 0 | P169: =IF(J169=0,0,O169-IF(J169=MAX($J$11:$J$227),SUM(P$10:P168),SUM(P$10:P168))) -> 0 | Q169: 0 | R169: 0 | S169: 0.1745908355
G170: 0 | H170: 0 | I170: 0 | J170: =IF(H170=0,0,IF(H170=$C$10,1, IF(comp_entre(INDEX($S$10:$S$109,MAX(J171:J$227)),prob_ac(K171),prob_ac(K170))>0,MAX(J171:$J$227)+1,0))) -> 0 | K170: =I170-VLOOKUP(MAX(G171:G$227),G171:I$227,3,FALSE) -> 0 | L170: - | M170: 0 | N170: 0 | O170: 0 | P170: =IF(J170=0,0,O170-IF(J170=MAX($J$11:$J$227),SUM(P$10:P169),SUM(P$10:P169))) -> 0 | Q170: 0 | R170: 0 | S170: 0.5005515551
G171: 0 | H171: 0 | I171: 0 | J171: =IF(H171=0,0,IF(H171=$C$10,1, IF(comp_entre(INDEX($S$10:$S$109,MAX(J172:J$227)),prob_ac(K172),prob_ac(K171))>0,MAX(J172:$J$227)+1,0))) -> 0 | K171: =I171-VLOOKUP(MAX(G172:G$227),G172:I$227,3,FALSE) -> 0 | L171: - | M171: 0 | N171: 0 | O171: 0 | P171: =IF(J171=0,0,O171-IF(J171=MAX($J$11:$J$227),SUM(P$10:P170),SUM(P$10:P170))) -> 0 | Q171: 0 | R171: 0 | S171: 0.8750921019
G172: 0 | H172: 0 | I172: 0 | J172: =IF(H172=0,0,IF(H172=$C$10,1, IF(comp_entre(INDEX($S$10:$S$109,MAX(J173:J$227)),prob_ac(K173),prob_ac(K172))>0,MAX(J173:$J$227)+1,0))) -> 0 | K172: =I172-VLOOKUP(MAX(G173:G$227),G173:I$227,3,FALSE) -> 0 | L172: - | M172: 0 | N172: 0 | O172: 0 | P172: =IF(J172=0,0,O172-IF(J172=MAX($J$11:$J$227),SUM(P$10:P171),SUM(P$10:P171))) -> 0 | Q172: 0 | R172: 0 | S172: 0.7962330839
G173: 0 | H173: 0 | I173: 0 | J173: =IF(H173=0,0,IF(H173=$C$10,1, IF(comp_entre(INDEX($S$10:$S$109,MAX(J174:J$227)),prob_ac(K174),prob_ac(K173))>0,MAX(J174:$J$227)+1,0))) -> 0 | K173: =I173-VLOOKUP(MAX(G174:G$227),G174:I$227,3,FALSE) -> 0 | L173: - | M173: 0 | N173: 0 | O173: 0 | P173: =IF(J173=0,0,O173-IF(J173=MAX($J$11:$J$227),SUM(P$10:P172),SUM(P$10:P172))) -> 0 | Q173: 0 | R173: 0 | S173: 0.5544312706
G174: 0 | H174: 0 | I174: 0 | J174: =IF(H174=0,0,IF(H174=$C$10,1, IF(comp_entre(INDEX($S$10:$S$109,MAX(J175:J$227)),prob_ac(K175),prob_ac(K174))>0,MAX(J175:$J$227)+1,0))) -> 0 | K174: =I174-VLOOKUP(MAX(G175:G$227),G175:I$227,3,FALSE) -> 0 | L174: - | M174: 0 | N174: 0 | O174: 0 | P174: =IF(J174=0,0,O174-IF(J174=MAX($J$11:$J$227),SUM(P$10:P173),SUM(P$10:P173))) -> 0 | Q174: 0 | R174: 0 | S174: 0.5125137237
G175: 0 | H175: 0 | I175: 0 | J175: =IF(H175=0,0,IF(H175=$C$10,1, IF(comp_entre(INDEX($S$10:$S$109,MAX(J176:J$227)),prob_ac(K176),prob_ac(K175))>0,MAX(J176:$J$227)+1,0))) -> 0 | K175: =I175-VLOOKUP(MAX(G176:G$227),G176:I$227,3,FALSE) -> 0 | L175: - | M175: 0 | N175: 0 | O175: 0 | P175: =IF(J175=0,0,O175-IF(J175=MAX($J$11:$J$227),SUM(P$10:P174),SUM(P$10:P174))) -> 0 | Q175: 0 | R175: 0 | S175: 0.4578503594
G176: 0 | H176: 0 | I176: 0 | J176: =IF(H176=0,0,IF(H176=$C$10,1, IF(comp_entre(INDEX($S$10:$S$109,MAX(J177:J$227)),prob_ac(K177),prob_ac(K176))>0,MAX(J177:$J$227)+1,0))) -> 0 | K176: =I176-VLOOKUP(MAX(G177:G$227),G177:I$227,3,FALSE) -> 0 | L176: - | M176: 0 | N176: 0 | O176: 0 | P176: =IF(J176=0,0,O176-IF(J176=MAX($J$11:$J$227),SUM(P$10:P175),SUM(P$10:P175))) -> 0 | Q176: 0 | R176: 0 | S176: 0.4805378276
G177: 0 | H177: 0 | I177: 0 | J177: =IF(H177=0,0,IF(H177=$C$10,1, IF(comp_entre(INDEX($S$10:$S$109,MAX(J178:J$227)),prob_ac(K178),prob_ac(K177))>0,MAX(J178:$J$227)+1,0))) -> 0 | K177: =I177-VLOOKUP(MAX(G178:G$227),G178:I$227,3,FALSE) -> 0 | L177: - | M177: 0 | N177: 0 | O177: 0 | P177: =IF(J177=0,0,O177-IF(J177=MAX($J$11:$J$227),SUM(P$10:P176),SUM(P$10:P176))) -> 0 | Q177: 0 | R177: 0 | S177: 0.5594267386
G178: 0 | H178: 0 | I178: 0 | J178: =IF(H178=0,0,IF(H178=$C$10,1, IF(comp_entre(INDEX($S$10:$S$109,MAX(J179:J$227)),prob_ac(K179),prob_ac(K178))>0,MAX(J179:$J$227)+1,0))) -> 0 | K178: =I178-VLOOKUP(MAX(G179:G$227),G179:I$227,3,FALSE) -> 0 | L178: - | M178: 0 | N178: 0 | O178: 0 | P178: =IF(J178=0,0,O178-IF(J178=MAX($J$11:$J$227),SUM(P$10:P177),SUM(P$10:P177))) -> 0 | Q178: 0 | R178: 0 | S178: 0.8028175388
G179: 0 | H179: 0 | I179: 0 | J179: =IF(H179=0,0,IF(H179=$C$10,1, IF(comp_entre(INDEX($S$10:$S$109,MAX(J180:J$227)),prob_ac(K180),prob_ac(K179))>0,MAX(J180:$J$227)+1,0))) -> 0 | K179: =I179-VLOOKUP(MAX(G180:G$227),G180:I$227,3,FALSE) -> 0 | L179: - | M179: 0 | N179: 0 | O179: 0 | P179: =IF(J179=0,0,O179-IF(J179=MAX($J$11:$J$227),SUM(P$10:P178),SUM(P$10:P178))) -> 0 | Q179: 0 | R179: 0 | S179: 0.259707768
G180: 0 | H180: 0 | I180: 0 | J180: =IF(H180=0,0,IF(H180=$C$10,1, IF(comp_entre(INDEX($S$10:$S$109,MAX(J181:J$227)),prob_ac(K181),prob_ac(K180))>0,MAX(J181:$J$227)+1,0))) -> 0 | K180: =I180-VLOOKUP(MAX(G181:G$227),G181:I$227,3,FALSE) -> 0 | L180: - | M180: 0 | N180: 0 | O180: 0 | P180: =IF(J180=0,0,O180-IF(J180=MAX($J$11:$J$227),SUM(P$10:P179),SUM(P$10:P179))) -> 0 | Q180: 0 | R180: 0 | S180: 0.5048273664
G181: 0 | H181: 0 | I181: 0 | J181: =IF(H181=0,0,IF(H181=$C$10,1, IF(comp_entre(INDEX($S$10:$S$109,MAX(J182:J$227)),prob_ac(K182),prob_ac(K181))>0,MAX(J182:$J$227)+1,0))) -> 0 | K181: =I181-VLOOKUP(MAX(G182:G$227),G182:I$227,3,FALSE) -> 0 | L181: - | M181: 0 | N181: 0 | O181: 0 | P181: =IF(J181=0,0,O181-IF(J181=MAX($J$11:$J$227),SUM(P$10:P180),SUM(P$10:P180))) -> 0 | Q181: 0 | R181: 0 | S181: 0.6000374687
G182: 0 | H182: 0 | I182: 0 | J182: =IF(H182=0,0,IF(H182=$C$10,1, IF(comp_entre(INDEX($S$10:$S$109,MAX(J183:J$227)),prob_ac(K183),prob_ac(K182))>0,MAX(J183:$J$227)+1,0))) -> 0 | K182: =I182-VLOOKUP(MAX(G183:G$227),G183:I$227,3,FALSE) -> 0 | L182: - | M182: 0 | N182: 0 | O182: 0 | P182: =IF(J182=0,0,O182-IF(J182=MAX($J$11:$J$227),SUM(P$10:P181),SUM(P$10:P181))) -> 0 | Q182: 0 | R182: 0 | S182: 0.1287634859
G183: 0 | H183: 0 | I183: 0 | J183: =IF(H183=0,0,IF(H183=$C$10,1, IF(comp_entre(INDEX($S$10:$S$109,MAX(J184:J$227)),prob_ac(K184),prob_ac(K183))>0,MAX(J184:$J$227)+1,0))) -> 0 | K183: =I183-VLOOKUP(MAX(G184:G$227),G184:I$227,3,FALSE) -> 0 | L183: - | M183: 0 | N183: 0 | O183: 0 | P183: =IF(J183=0,0,O183-IF(J183=MAX($J$11:$J$227),SUM(P$10:P182),SUM(P$10:P182))) -> 0 | Q183: 0 | R183: 0 | S183: 0.8705108301
G184: 0 | H184: 0 | I184: 0 | J184: =IF(H184=0,0,IF(H184=$C$10,1, IF(comp_entre(INDEX($S$10:$S$109,MAX(J185:J$227)),prob_ac(K185),prob_ac(K184))>0,MAX(J185:$J$227)+1,0))) -> 0 | K184: =I184-VLOOKUP(MAX(G185:G$227),G185:I$227,3,FALSE) -> 0 | L184: - | M184: 0 | N184: 0 | O184: 0 | P184: =IF(J184=0,0,O184-IF(J184=MAX($J$11:$J$227),SUM(P$10:P183),SUM(P$10:P183))) -> 0 | Q184: 0 | R184: 0 | S184: 0.7248029777
G185: 0 | H185: 0 | I185: 0 | J185: =IF(H185=0,0,IF(H185=$C$10,1, IF(comp_entre(INDEX($S$10:$S$109,MAX(J186:J$227)),prob_ac(K186),prob_ac(K185))>0,MAX(J186:$J$227)+1,0))) -> 0 | K185: =I185-VLOOKUP(MAX(G186:G$227),G186:I$227,3,FALSE) -> 0 | L185: - | M185: 0 | N185: 0 | O185: 0 | P185: =IF(J185=0,0,O185-IF(J185=MAX($J$11:$J$227),SUM(P$10:P184),SUM(P$10:P184))) -> 0 | Q185: 0 | R185: 0 | S185: 0.3870317457
G186: 0 | H186: 0 | I186: 0 | J186: =IF(H186=0,0,IF(H186=$C$10,1, IF(comp_entre(INDEX($S$10:$S$109,MAX(J187:J$227)),prob_ac(K187),prob_ac(K186))>0,MAX(J187:$J$227)+1,0))) -> 0 | K186: =I186-VLOOKUP(MAX(G187:G$227),G187:I$227,3,FALSE) -> 0 | L186: - | M186: 0 | N186: 0 | O186: 0 | P186: =IF(J186=0,0,O186-IF(J186=MAX($J$11:$J$227),SUM(P$10:P185),SUM(P$10:P185))) -> 0 | Q186: 0 | R186: 0 | S186: 0.5959606101
G187: 0 | H187: 0 | I187: 0 | J187: =IF(H187=0,0,IF(H187=$C$10,1, IF(comp_entre(INDEX($S$10:$S$109,MAX(J188:J$227)),prob_ac(K188),prob_ac(K187))>0,MAX(J188:$J$227)+1,0))) -> 0 | K187: =I187-VLOOKUP(MAX(G188:G$227),G188:I$227,3,FALSE) -> 0 | L187: - | M187: 0 | N187: 0 | O187: 0 | P187: =IF(J187=0,0,O187-IF(J187=MAX($J$11:$J$227),SUM(P$10:P186),SUM(P$10:P186))) -> 0 | Q187: 0 | R187: 0 | S187: 0.748067714
G188: 0 | H188: 0 | I188: 0 | J188: =IF(H188=0,0,IF(H188=$C$10,1, IF(comp_entre(INDEX($S$10:$S$109,MAX(J189:J$227)),prob_ac(K189),prob_ac(K188))>0,MAX(J189:$J$227)+1,0))) -> 0 | K188: =I188-VLOOKUP(MAX(G189:G$227),G189:I$227,3,FALSE) -> 0 | L188: - | M188: 0 | N188: 0 | O188: 0 | P188: =IF(J188=0,0,O188-IF(J188=MAX($J$11:$J$227),SUM(P$10:P187),SUM(P$10:P187))) -> 0 | Q188: 0 | R188: 0 | S188: 0.8833712091
G189: 0 | H189: 0 | I189: 0 | J189: =IF(H189=0,0,IF(H189=$C$10,1, IF(comp_entre(INDEX($S$10:$S$109,MAX(J190:J$227)),prob_ac(K190),prob_ac(K189))>0,MAX(J190:$J$227)+1,0))) -> 0 | K189: =I189-VLOOKUP(MAX(G190:G$227),G190:I$227,3,FALSE) -> 0 | L189: - | M189: 0 | N189: 0 | O189: 0 | P189: =IF(J189=0,0,O189-IF(J189=MAX($J$11:$J$227),SUM(P$10:P188),SUM(P$10:P188))) -> 0 | Q189: 0 | R189: 0 | S189: 0.4015039579
G190: 0 | H190: 0 | I190: 0 | J190: =IF(H190=0,0,IF(H190=$C$10,1, IF(comp_entre(INDEX($S$10:$S$109,MAX(J191:J$227)),prob_ac(K191),prob_ac(K190))>0,MAX(J191:$J$227)+1,0))) -> 0 | K190: =I190-VLOOKUP(MAX(G191:G$227),G191:I$227,3,FALSE) -> 0 | L190: - | M190: 0 | N190: 0 | O190: 0 | P190: =IF(J190=0,0,O190-IF(J190=MAX($J$11:$J$227),SUM(P$10:P189),SUM(P$10:P189))) -> 0 | Q190: 0 | R190: 0 | S190: 0.8346994219
G191: 0 | H191: 0 | I191: 0 | J191: =IF(H191=0,0,IF(H191=$C$10,1, IF(comp_entre(INDEX($S$10:$S$109,MAX(J192:J$227)),prob_ac(K192),prob_ac(K191))>0,MAX(J192:$J$227)+1,0))) -> 0 | K191: =I191-VLOOKUP(MAX(G192:G$227),G192:I$227,3,FALSE) -> 0 | L191: - | M191: 0 | N191: 0 | O191: 0 | P191: =IF(J191=0,0,O191-IF(J191=MAX($J$11:$J$227),SUM(P$10:P190),SUM(P$10:P190))) -> 0 | Q191: 0 | R191: 0 | S191: 0.5056565909
G192: 0 | H192: 0 | I192: 0 | J192: =IF(H192=0,0,IF(H192=$C$10,1, IF(comp_entre(INDEX($S$10:$S$109,MAX(J193:J$227)),prob_ac(K193),prob_ac(K192))>0,MAX(J193:$J$227)+1,0))) -> 0 | K192: =I192-VLOOKUP(MAX(G193:G$227),G193:I$227,3,FALSE) -> 0 | L192: - | M192: 0 | N192: 0 | O192: 0 | P192: =IF(J192=0,0,O192-IF(J192=MAX($J$11:$J$227),SUM(P$10:P191),SUM(P$10:P191))) -> 0 | Q192: 0 | R192: 0 | S192: 0.9421036227
G193: 0 | H193: 0 | I193: 0 | J193: =IF(H193=0,0,IF(H193=$C$10,1, IF(comp_entre(INDEX($S$10:$S$109,MAX(J194:J$227)),prob_ac(K194),prob_ac(K193))>0,MAX(J194:$J$227)+1,0))) -> 0 | K193: =I193-VLOOKUP(MAX(G194:G$227),G194:I$227,3,FALSE) -> 0 | L193: - | M193: 0 | N193: 0 | O193: 0 | P193: =IF(J193=0,0,O193-IF(J193=MAX($J$11:$J$227),SUM(P$10:P192),SUM(P$10:P192))) -> 0 | Q193: 0 | R193: 0 | S193: 0.5267904934
G194: 0 | H194: 0 | I194: 0 | J194: =IF(H194=0,0,IF(H194=$C$10,1, IF(comp_entre(INDEX($S$10:$S$109,MAX(J195:J$227)),prob_ac(K195),prob_ac(K194))>0,MAX(J195:$J$227)+1,0))) -> 0 | K194: =I194-VLOOKUP(MAX(G195:G$227),G195:I$227,3,FALSE) -> 0 | L194: - | M194: 0 | N194: 0 | O194: 0 | P194: =IF(J194=0,0,O194-IF(J194=MAX($J$11:$J$227),SUM(P$10:P193),SUM(P$10:P193))) -> 0 | Q194: 0 | R194: 0 | S194: 0.6909635605
G195: 0 | H195: 0 | I195: 0 | J195: =IF(H195=0,0,IF(H195=$C$10,1, IF(comp_entre(INDEX($S$10:$S$109,MAX(J196:J$227)),prob_ac(K196),prob_ac(K195))>0,MAX(J196:$J$227)+1,0))) -> 0 | K195: =I195-VLOOKUP(MAX(G196:G$227),G196:I$227,3,FALSE) -> 0 | L195: - | M195: 0 | N195: 0 | O195: 0 | P195: =IF(J195=0,0,O195-IF(J195=MAX($J$11:$J$227),SUM(P$10:P194),SUM(P$10:P194))) -> 0 | Q195: 0 | R195: 0 | S195: 0.2204876168
G196: 0 | H196: 0 | I196: 0 | J196: =IF(H196=0,0,IF(H196=$C$10,1, IF(comp_entre(INDEX($S$10:$S$109,MAX(J197:J$227)),prob_ac(K197),prob_ac(K196))>0,MAX(J197:$J$227)+1,0))) -> 0 | K196: =I196-VLOOKUP(MAX(G197:G$227),G197:I$227,3,FALSE) -> 0 | L196: - | M196: 0 | N196: 0 | O196: 0 | P196: =IF(J196=0,0,O196-IF(J196=MAX($J$11:$J$227),SUM(P$10:P195),SUM(P$10:P195))) -> 0 | Q196: 0 | R196: 0 | S196: 0.3185304107
G197: 0 | H197: 0 | I197: 0 | J197: =IF(H197=0,0,IF(H197=$C$10,1, IF(comp_entre(INDEX($S$10:$S$109,MAX(J198:J$227)),prob_ac(K198),prob_ac(K197))>0,MAX(J198:$J$227)+1,0))) -> 0 | K197: =I197-VLOOKUP(MAX(G198:G$227),G198:I$227,3,FALSE) -> 0 | L197: - | M197: 0 | N197: 0 | O197: 0 | P197: =IF(J197=0,0,O197-IF(J197=MAX($J$11:$J$227),SUM(P$10:P196),SUM(P$10:P196))) -> 0 | Q197: 0 | R197: 0 | S197: 0.347636479
G198: 0 | H198: 0 | I198: 0 | J198: =IF(H198=0,0,IF(H198=$C$10,1, IF(comp_entre(INDEX($S$10:$S$109,MAX(J199:J$227)),prob_ac(K199),prob_ac(K198))>0,MAX(J199:$J$227)+1,0))) -> 0 | K198: =I198-VLOOKUP(MAX(G199:G$227),G199:I$227,3,FALSE) -> 0 | L198: - | M198: 0 | N198: 0 | O198: 0 | P198: =IF(J198=0,0,O198-IF(J198=MAX($J$11:$J$227),SUM(P$10:P197),SUM(P$10:P197))) -> 0 | Q198: 0 | R198: 0 | S198: 0.912592392
G199: 0 | H199: 0 | I199: 0 | J199: =IF(H199=0,0,IF(H199=$C$10,1, IF(comp_entre(INDEX($S$10:$S$109,MAX(J200:J$227)),prob_ac(K200),prob_ac(K199))>0,MAX(J200:$J$227)+1,0))) -> 0 | K199: =I199-VLOOKUP(MAX(G200:G$227),G200:I$227,3,FALSE) -> 0 | L199: - | M199: 0 | N199: 0 | O199: 0 | P199: =IF(J199=0,0,O199-IF(J199=MAX($J$11:$J$227),SUM(P$10:P198),SUM(P$10:P198))) -> 0 | Q199: 0 | R199: 0 | S199: 0.2327585841
G200: 0 | H200: 0 | I200: 0 | J200: =IF(H200=0,0,IF(H200=$C$10,1, IF(comp_entre(INDEX($S$10:$S$109,MAX(J201:J$227)),prob_ac(K201),prob_ac(K200))>0,MAX(J201:$J$227)+1,0))) -> 0 | K200: =I200-VLOOKUP(MAX(G201:G$227),G201:I$227,3,FALSE) -> 0 | L200: - | M200: 0 | N200: 0 | O200: 0 | P200: =IF(J200=0,0,O200-IF(J200=MAX($J$11:$J$227),SUM(P$10:P199),SUM(P$10:P199))) -> 0 | Q200: 0 | R200: 0 | S200: 0.7984613508
G201: 0 | H201: 0 | I201: 0 | J201: =IF(H201=0,0,IF(H201=$C$10,1, IF(comp_entre(INDEX($S$10:$S$109,MAX(J202:J$227)),prob_ac(K202),prob_ac(K201))>0,MAX(J202:$J$227)+1,0))) -> 0 | K201: =I201-VLOOKUP(MAX(G202:G$227),G202:I$227,3,FALSE) -> 0 | L201: - | M201: 0 | N201: 0 | O201: 0 | P201: =IF(J201=0,0,O201-IF(J201=MAX($J$11:$J$227),SUM(P$10:P200),SUM(P$10:P200))) -> 0 | Q201: 0 | R201: 0 | S201: 0.8754093193
G202: =J202 -> 0 | H202: 0 | I202: =IF(H203=0,0,I203+0.1) -> 0 | J202: =IF(H202=0,0,IF(H202=$C$10,1, IF(comp_entre(INDEX($S$10:$S$109,MAX(J203:J$227)),prob_ac(K203),prob_ac(K202))>0,MAX(J203:$J$227)+1,0))) -> 0 | K202: =I202-VLOOKUP(MAX(G203:G$227),G203:I$227,3,FALSE) -> 0 | L202: - | M202: =IF(H202=0,0,($C$8^2*(H202/1.3)^(2-2.0881)*($C$9-H202)/($C$9-1.3))^0.5) -> 0 | N202: 0 | O202: 0 | P202: =IF(J202=0,0,O202-IF(J202=MAX($J$11:$J$227),SUM(P$10:P201),SUM(P$10:P201))) -> 0 | Q202: 0 | R202: 0 | S202: =RAND() -> 0.7335640791
... 25 more rows
